Workbook

Sheet Avantages perçus
A1: Bénéficiaire | B1: Type de bénéficiaire | C1: Entreprise | D1: Date | E1: Nature | F1: Montant
A2: Daniel WENDLING | B2: Médecin | C2: LABORATOIRE GLAXOSMITHKLINE | D2: 17/04/2012 | E2: Hospitalité | F2: 52
A3: Daniel WENDLING | B3: Médecin | C3: LABORATOIRE GLAXOSMITHKLINE | D3: 19/05/2012 | E3: Transport | F3: 15
A4: Daniel WENDLING | B4: Médecin | C4: LABORATOIRE GLAXOSMITHKLINE | D4: 19/05/2012 | E4: Inscription | F4: 637
A5: Daniel WENDLING | B5: Médecin | C5: LABORATOIRE GLAXOSMITHKLINE | D5: 19/05/2012 | E5: Hospitalité | F5: 2340
A6: Daniel WENDLING | B6: Médecin | C6: MSD France | D6: 21/06/2012 | E6: HOSPITALITÉ | F6: 60
A7: Daniel WENDLING | B7: Médecin | C7: AbbVie | D7: 18/10/2012 | E7: AUTRE : [HOSPITALITE] | F7: 33
A8: Daniel WENDLING | B8: Médecin | C8: AbbVie | D8: 25/10/2012 | E8: AUTRE : [HOSPITALITE] | F8: 58
A9: Daniel WENDLING | B9: Médecin | C9: AbbVie | D9: 29/11/2012 | E9: AUTRE : [HOSPITALITE] | F9: 47
A10: Daniel WENDLING | B10: Médecin | C10: AbbVie | D10: 14/02/2013 | E10: AUTRE : [HOSPITALITE] | F10: 23
A11: Daniel WENDLING | B11: Médecin | C11: MSD France | D11: 28/02/2013 | E11: REPAS | F11: 28
A12: Daniel WENDLING | B12: Médecin | C12: LABORATOIRE GLAXOSMITHKLINE | D12: 2013-03-07 | E12: Hospitalite | F12: 25
A13: Daniel WENDLING | B13: Médecin | C13: AbbVie | D13: 28/03/2013 | E13: AUTRE : [HOSPITALITE] | F13: 48
A14: Daniel WENDLING | B14: Médecin | C14: MSD France | D14: 28/03/2013 | E14: REPAS | F14: 26
A15: Daniel WENDLING | B15: Médecin | C15: MSD France | D15: 28/03/2013 | E15: REPAS | F15: 26
A16: Daniel WENDLING | B16: Médecin | C16: AbbVie | D16: 22/04/2013 | E16: AUTRE : [HOSPITALITE] | F16: 451
A17: Daniel WENDLING | B17: Médecin | C17: AbbVie | D17: 16/05/2013 | E17: AUTRE : [HOSPITALITE] | F17: 47
A18: Daniel WENDLING | B18: Médecin | C18: AbbVie | D18: 16/05/2013 | E18: AUTRE : [HOSPITALITE] | F18: 24
A19: Daniel WENDLING | B19: Médecin | C19: LABORATOIRE NOVEX PHARMA | D19: 23/05/2013 | E19: Repas | F19: 20
A20: Daniel WENDLING | B20: Médecin | C20: MSD France | D20: 2013-06-12 | E20: HOSPITALITÉ | F20: 2053
A21: Daniel WENDLING | B21: Médecin | C21: MSD France | D21: 15/06/2013 | E21: HOSPITALITÉ | F21: 615
A22: Daniel WENDLING | B22: Médecin | C22: PFIZER SAS | D22: 27/06/2013 | E22: Repas | F22: 30
A23: Daniel WENDLING | B23: Médecin | C23: AbbVie | D23: 27/06/2013 | E23: AUTRE : [HOSPITALITE] | F23: 317
A24: Daniel WENDLING | B24: Médecin | C24: AbbVie | D24: 22/08/2013 | E24: Repas | F24: 10
A25: Daniel WENDLING | B25: Médecin | C25: PFIZER SAS | D25: 14/09/2013 | E25: REPAS | F25: 136
A26: Daniel WENDLING | B26: Médecin | C26: PFIZER SAS | D26: 14/09/2013 | E26: TRANSPORT | F26: 291
A27: Daniel WENDLING | B27: Médecin | C27: PFIZER SAS | D27: 14/09/2013 | E27: HEBERGEMENT | F27: 180
A28: Daniel WENDLING | B28: Médecin | C28: AbbVie | D28: 17/09/2013 | E28: Repas | F28: 36
A29: Daniel WENDLING | B29: Médecin | C29: MSD France | D29: 24/09/2013 | E29: HOSPITALITÉ | F29: 468
A30: Daniel WENDLING | B30: Médecin | C30: ROCHE SAS | D30: 2013-10-01 | E30: Repas | F30: 17
A31: Daniel WENDLING | B31: Médecin | C31: Laboratoires Grünenthal SAS | D31: 2013-10-03 | E31: REPAS | F31: 20
A32: Daniel WENDLING | B32: Médecin | C32: AbbVie | D32: 2013-10-11 | E32: TRANSPORT | F32: 102
A33: Daniel WENDLING | B33: Médecin | C33: AbbVie | D33: 2013-10-11 | E33: HOSPITALITE | F33: 23
A34: Daniel WENDLING | B34: Médecin | C34: AbbVie | D34: 2013-10-11 | E34: REPAS | F34: 42
A35: Daniel WENDLING | B35: Médecin | C35: AbbVie | D35: 2013-10-11 | E35: HÉBERGEMENT | F35: 207
A36: Daniel WENDLING | B36: Médecin | C36: AbbVie | D36: 2013-10-11 | E36: REPAS | F36: 60
A37: Daniel WENDLING | B37: Médecin | C37: MSD France | D37: 17/10/2013 | E37: REPAS | F37: 27
A38: Daniel WENDLING | B38: Médecin | C38: CHUGAI PHARMA FRANCE | D38: 29/10/2013 | E38: REPAS | F38: 22
A39: Daniel WENDLING | B39: Médecin | C39: PACKAGE | D39: 13/11/2013 | E39: AUTRE | F39: 230
A40: Daniel WENDLING | B40: Médecin | C40: PACKAGE | D40: 13/11/2013 | E40: REPAS | F40: 53
A41: Daniel WENDLING | B41: Médecin | C41: CHUGAI PHARMA FRANCE | D41: 14/11/2013 | E41: REPAS | F41: 59
A42: Daniel WENDLING | B42: Médecin | C42: PFIZER SAS | D42: 2013-12-03 | E42: AUTRE: INSCRIPTION | F42: 350
A43: Daniel WENDLING | B43: Médecin | C43: PFIZER SAS | D43: 2013-12-03 | E43: TRANSPORT | F43: 208
A44: Daniel WENDLING | B44: Médecin | C44: ROTTAPHARM SAS | D44: 2013-12-09 | E44: VISITE/GO-ON 25MG | F44: 18
A45: Daniel WENDLING | B45: Médecin | C45: Laboratoires Grünenthal SAS | D45: 2014-01-09 | E45: REPAS | F45: 55
A46: Daniel WENDLING | B46: Médecin | C46: Laboratoires Expanscience | D46: 30/01/2014 | E46: Repas | F46: 23
A47: Daniel WENDLING | B47: Médecin | C47: BRISTOL-MYERS SQUIBB | D47: 31/01/2014 | E47: Repas | F47: 22
A48: Daniel WENDLING | B48: Médecin | C48: CHUGAI PHARMA FRANCE | D48: 2014-02-02 | E48: TRANSPORT | F48: 150
A49: Daniel WENDLING | B49: Médecin | C49: PFIZER SAS | D49: 2014-02-08 | E49: REPAS | F49: 144
A50: Daniel WENDLING | B50: Médecin | C50: PFIZER SAS | D50: 2014-02-08 | E50: TRANSPORT | F50: 206
A51: Daniel WENDLING | B51: Médecin | C51: PFIZER SAS | D51: 2014-02-08 | E51: HEBERGEMENT | F51: 199
A52: Daniel WENDLING | B52: Médecin | C52: AMGEN SAS | D52: 2014-02-11 | E52: REPAS IMPROMPTU | F52: 60
A53: Daniel WENDLING | B53: Médecin | C53: Lilly France SAS | D53: 27/02/2014 | E53: REPAS | F53: 22
A54: Daniel WENDLING | B54: Médecin | C54: Lilly France SAS | D54: 27/02/2014 | E54: REPAS | F54: 22
A55: Daniel WENDLING | B55: Médecin | C55: MEDEXACT | D55: 2014-03-07 | E55: Autre: [Enquête] | F55: 16
A56: Daniel WENDLING | B56: Médecin | C56: AbbVie | D56: 19/03/2014 | E56: REPAS | F56: 24
A57: Daniel WENDLING | B57: Médecin | C57: AbbVie | D57: 19/03/2014 | E57: TRANSPORT | F57: 48
A58: Daniel WENDLING | B58: Médecin | C58: ROTTAPHARM SAS | D58: 26/03/2014 | E58: SOIREE | F58: 10
A59: Daniel WENDLING | B59: Médecin | C59: BRISTOL-MYERS SQUIBB | D59: 27/03/2014 | E59: Hébergement | F59: 126
A60: Daniel WENDLING | B60: Médecin | C60: HOSPIRA FRANCE | D60: 2014-04-09 | E60: HOSPITALITE | F60: 40
A61: Daniel WENDLING | B61: Médecin | C61: BRISTOL-MYERS SQUIBB | D61: 2014-04-10 | E61: Repas | F61: 45
A62: Daniel WENDLING | B62: Médecin | C62: Lilly France SAS | D62: 17/04/2014 | E62: REPAS | F62: 23
A63: Daniel WENDLING | B63: Médecin | C63: MSD France | D63: 2014-05-04 | E63: TRANSPORT | F63: 3509
A64: Daniel WENDLING | B64: Médecin | C64: MSD France | D64: 2014-05-04 | E64: REPAS | F64: 53
A65: Daniel WENDLING | B65: Médecin | C65: MSD France | D65: 2014-05-04 | E65: HÉBERGEMENT | F65: 105
A66: Daniel WENDLING | B66: Médecin | C66: MSD France | D66: 2014-05-05 | E66: HÉBERGEMENT | F66: 105
A67: Daniel WENDLING | B67: Médecin | C67: MSD France | D67: 2014-05-06 | E67: REPAS | F67: 53
A68: Daniel WENDLING | B68: Médecin | C68: MSD France | D68: 2014-05-06 | E68: HÉBERGEMENT | F68: 105
A69: Daniel WENDLING | B69: Médecin | C69: PFIZER SAS | D69: 16/05/2014 | E69: REPAS | F69: 136
A70: Daniel WENDLING | B70: Médecin | C70: PFIZER SAS | D70: 16/05/2014 | E70: HEBERGEMENT | F70: 200
A71: Daniel WENDLING | B71: Médecin | C71: PFIZER SAS | D71: 16/05/2014 | E71: TRANSPORT | F71: 182
A72: Daniel WENDLING | B72: Médecin | C72: AbbVie | D72: 20/05/2014 | E72: REPAS | F72: 46
A73: Daniel WENDLING | B73: Médecin | C73: MSD France | D73: 2014-06-11 | E73: INSCRIPTION | F73: 765
A74: Daniel WENDLING | B74: Médecin | C74: MSD France | D74: 2014-06-11 | E74: HÉBERGEMENT | F74: 1058
A75: Daniel WENDLING | B75: Médecin | C75: MSD France | D75: 2014-06-11 | E75: TRANSPORT | F75: 230
A76: Daniel WENDLING | B76: Médecin | C76: MSD France | D76: 2014-06-11 | E76: REPAS | F76: 55
A77: Daniel WENDLING | B77: Médecin | C77: MSD France | D77: 2014-06-12 | E77: REPAS | F77: 55
A78: Daniel WENDLING | B78: Médecin | C78: MSD France | D78: 13/06/2014 | E78: REPAS | F78: 60
A79: Daniel WENDLING | B79: Médecin | C79: ICOMED | D79: 16/06/2014 | E79: Autre: [Enquête] | F79: 26
A80: Daniel WENDLING | B80: Médecin | C80: PRECIPHAR | D80: 19/06/2014 | E80: Repas | F80: 60
A81: Daniel WENDLING | B81: Médecin | C81: LABORATOIRES MAYOLY SPINDLER | D81: 26/06/2014 | E81: HOSPITALITE | F81: 50
A82: Daniel WENDLING | B82: Médecin | C82: BRISTOL-MYERS SQUIBB | D82: 30/06/2014 | E82: Repas | F82: 60
A83: Daniel WENDLING | B83: Médecin | C83: AbbVie | D83: 2014-07-02 | E83: REPAS | F83: 43
A84: Daniel WENDLING | B84: Médecin | C84: AbbVie | D84: 2014-07-04 | E84: REPAS | F84: 51
A85: Daniel WENDLING | B85: Médecin | C85: AbbVie | D85: 2014-07-04 | E85: AUTRE : [PAUSE] | F85: 10
A86: Daniel WENDLING | B86: Médecin | C86: AbbVie | D86: 2014-07-04 | E86: TRANSPORT | F86: 268
A87: Daniel WENDLING | B87: Médecin | C87: AbbVie | D87: 2014-10-07 | E87: REPAS | F87: 39
A88: Daniel WENDLING | B88: Médecin | C88: AbbVie | D88: 15/10/2014 | E88: HEBERGEMENT | F88: 215
A89: Daniel WENDLING | B89: Médecin | C89: AbbVie | D89: 15/10/2014 | E89: REPAS | F89: 60
A90: Daniel WENDLING | B90: Médecin | C90: AbbVie | D90: 15/10/2014 | E90: TRANSPORT | F90: 178
A91: Daniel WENDLING | B91: Médecin | C91: AbbVie | D91: 16/10/2014 | E91: REPAS | F91: 42
A92: Daniel WENDLING | B92: Médecin | C92: CHUGAI PHARMA FRANCE | D92: 16/10/2014 | E92: REPAS | F92: 60
A93: Daniel WENDLING | B93: Médecin | C93: PFIZER SAS | D93: 23/10/2014 | E93: Transport | F93: 372
A94: Daniel WENDLING | B94: Médecin | C94: PFIZER SAS | D94: 23/10/2014 | E94: Hébergement | F94: 283
A95: Daniel WENDLING | B95: Médecin | C95: PFIZER SAS | D95: 23/10/2014 | E95: Autre : Frais d'inscription Congrès | F95: 600
A96: Daniel WENDLING | B96: Médecin | C96: PFIZER SAS | D96: 23/10/2014 | E96: Repas | F96: 50
A97: Daniel WENDLING | B97: Médecin | C97: Lilly France SAS | D97: 30/10/2014 | E97: REPAS | F97: 22
A98: Daniel WENDLING | B98: Médecin | C98: Laboratoires Expanscience | D98: 2014-11-03 | E98: Repas | F98: 31
A99: Daniel WENDLING | B99: Médecin | C99: LIVE ! BY GL EVENTS | D99: 2014-11-05 | E99: Repas | F99: 61
A100: Daniel WENDLING | B100: Médecin | C100: LIVE ! BY GL EVENTS | D100: 2014-11-12 | E100: Autre : [note de frais] | F100: 230
A101: Daniel WENDLING | B101: Médecin | C101: AbbVie | D101: 26/11/2014 | E101: REPAS | F101: 31
A102: Daniel WENDLING | B102: Médecin | C102: ROCHE SAS | D102: 27/11/2014 | E102: Repas | F102: 39
A103: Daniel WENDLING | B103: Médecin | C103: Lilly France SAS | D103: 2014-12-01 | E103: REPAS | F103: 21
A104: Daniel WENDLING | B104: Médecin | C104: AMGEN SAS | D104: 2014-12-04 | E104: REPAS IMPROMPTU | F104: 16
A105: Daniel WENDLING | B105: Médecin | C105: MEDEXACT | D105: 2014-12-10 | E105: Autre: [Enquête] | F105: 31
A106: Daniel WENDLING | B106: Médecin | C106: AbbVie | D106: 2014-12-11 | E106: REPAS | F106: 25
A107: Daniel WENDLING | B107: Médecin | C107: UCB Pharma SA | D107: 13/12/2014 | E107: Repas | F107: 58
A108: Daniel WENDLING | B108: Médecin | C108: CHUGAI PHARMA FRANCE | D108: 22/01/2015 | E108: REPAS | F108: 20
A109: Daniel WENDLING | B109: Médecin | C109: MSD France | D109: 30/01/2015 | E109: TRANSPORT | F109: 154
A110: Daniel WENDLING | B110: Médecin | C110: MSD France | D110: 30/01/2015 | E110: REPAS | F110: 43
A111: Daniel WENDLING | B111: Médecin | C111: BRISTOL-MYERS SQUIBB | D111: 2015-02-03 | E111: Repas | F111: 60
A112: Daniel WENDLING | B112: Médecin | C112: BIOGARAN | D112: 19/02/2015 | E112: Repas | F112: 18
A113: Daniel WENDLING | B113: Médecin | C113: CHUGAI PHARMA FRANCE | D113: 19/02/2015 | E113: REPAS | F113: 60
A114: Daniel WENDLING | B114: Médecin | C114: AbbVie | D114: 2015-03-10 | E114: REPAS | F114: 50
A115: Daniel WENDLING | B115: Médecin | C115: Laboratoires Grünenthal SAS | D115: 19/03/2015 | E115: REPAS | F115: 45
A116: Daniel WENDLING | B116: Médecin | C116: SWEDISH ORPHAN BIOVITRUM | D116: 24/03/2015 | E116: REPAS | F116: 38
A117: Daniel WENDLING | B117: Médecin | C117: MSD France | D117: 26/03/2015 | E117: HÉBERGEMENT | F117: 189
A118: Daniel WENDLING | B118: Médecin | C118: MSD France | D118: 26/03/2015 | E118: HOSPITALITÉ | F118: 53
A119: Daniel WENDLING | B119: Médecin | C119: MSD France | D119: 26/03/2015 | E119: TRANSPORT | F119: 139
A120: Daniel WENDLING | B120: Médecin | C120: BRISTOL-MYERS SQUIBB | D120: 23/04/2015 | E120: Repas | F120: 47
A121: Daniel WENDLING | B121: Médecin | C121: NORDIC PHARMA SAS | D121: 2015-05-01 | E121: Transport | F121: 607
A122: Daniel WENDLING | B122: Médecin | C122: NORDIC PHARMA SAS | D122: 2015-05-01 | E122: Repas | F122: 93
A123: Daniel WENDLING | B123: Médecin | C123: NORDIC PHARMA SAS | D123: 2015-05-01 | E123: Hébergement | F123: 514
A124: Daniel WENDLING | B124: Médecin | C124: ICOMED | D124: 13/05/2015 | E124: Autre: [Enquête] | F124: 31
A125: Daniel WENDLING | B125: Médecin | C125: UCB Pharma SA | D125: 19/05/2015 | E125: Repas | F125: 50
A126: Daniel WENDLING | B126: Médecin | C126: UCB Pharma SA | D126: 21/05/2015 | E126: Repas | F126: 39
A127: Daniel WENDLING | B127: Médecin | C127: AbbVie | D127: 21/05/2015 | E127: REPAS | F127: 40
A128: Daniel WENDLING | B128: Médecin | C128: UCB Pharma SA | D128: 2015-06-02 | E128: Repas | F128: 50
A129: Daniel WENDLING | B129: Médecin | C129: UCB Pharma SA | D129: 2015-06-02 | E129: Transport | F129: 57
A130: Daniel WENDLING | B130: Médecin | C130: AMGEN SAS | D130: 2015-06-04 | E130: REPAS REUNION | F130: 18
A131: Daniel WENDLING | B131: Médecin | C131: MSD France | D131: 2015-06-10 | E131: INSCRIPTION | F131: 765
A132: Daniel WENDLING | B132: Médecin | C132: MSD France | D132: 2015-06-10 | E132: TRANSPORT | F132: 654
A133: Daniel WENDLING | B133: Médecin | C133: MSD France | D133: 2015-06-10 | E133: REPAS | F133: 60
A134: Daniel WENDLING | B134: Médecin | C134: MSD France | D134: 2015-06-10 | E134: TRANSPORT | F134: 309
A135: Daniel WENDLING | B135: Médecin | C135: MSD France | D135: 2015-06-10 | E135: HOSPITALITÉ | F135: 40
A136: Daniel WENDLING | B136: Médecin | C136: MSD France | D136: 2015-06-10 | E136: HÉBERGEMENT | F136: 528
A137: Daniel WENDLING | B137: Médecin | C137: MSD France | D137: 2015-06-11 | E137: REPAS | F137: 60
A138: Daniel WENDLING | B138: Médecin | C138: MSD France | D138: 2015-06-12 | E138: REPAS | F138: 60
A139: Daniel WENDLING | B139: Médecin | C139: UCB Pharma SA | D139: 17/06/2015 | E139: Transport | F139: 57
A140: Daniel WENDLING | B140: Médecin | C140: PRECIPHAR | D140: 18/06/2015 | E140: Repas | F140: 60
A141: Daniel WENDLING | B141: Médecin | C141: GIBAUD | D141: 18/06/2015 | E141: Repas | F141: 16
A142: Daniel WENDLING | B142: Médecin | C142: MSD France | D142: 20/06/2015 | E142: REPAS | F142: 48
A143: Daniel WENDLING | B143: Médecin | C143: MSD France | D143: 20/06/2015 | E143: TRANSPORT | F143: 134
A144: Daniel WENDLING | B144: Médecin | C144: ROCHE SAS | D144: 2015-09-10 | E144: Repas | F144: 46
A145: Daniel WENDLING | B145: Médecin | C145: PFIZER SAS | D145: 2015-09-11 | E145: Transport | F145: 222
A146: Daniel WENDLING | B146: Médecin | C146: PFIZER SAS | D146: 2015-09-11 | E146: Hébergement | F146: 180
A147: Daniel WENDLING | B147: Médecin | C147: PFIZER SAS | D147: 2015-09-11 | E147: Repas | F147: 76
A148: Daniel WENDLING | B148: Médecin | C148: UCB Pharma SA | D148: 18/09/2015 | E148: REPAS | F148: 140
A149: Daniel WENDLING | B149: Médecin | C149: UCB Pharma SA | D149: 18/09/2015 | E149: REPAS | F149: 140
A150: Daniel WENDLING | B150: Médecin | C150: BRISTOL-MYERS SQUIBB | D150: 28/09/2015 | E150: Repas | F150: 39
A151: Daniel WENDLING | B151: Médecin | C151: NOVARTIS PHARMA SAS | D151: 14/10/2015 | E151: REPAS | F151: 59
A152: Daniel WENDLING | B152: Médecin | C152: ROCHE SAS | D152: 26/11/2015 | E152: Repas | F152: 35
A153: Daniel WENDLING | B153: Médecin | C153: MSD France | D153: 27/11/2015 | E153: TRANSPORT | F153: 128
A154: Daniel WENDLING | B154: Médecin | C154: MSD France | D154: 27/11/2015 | E154: TRANSPORT | F154: 12
A155: Daniel WENDLING | B155: Médecin | C155: MSD France | D155: 27/11/2015 | E155: REPAS | F155: 60
A156: Daniel WENDLING | B156: Médecin | C156: MSD France | D156: 27/11/2015 | E156: HÉBERGEMENT | F156: 227
A157: Daniel WENDLING | B157: Médecin | C157: MSD France | D157: 28/11/2015 | E157: REPAS | F157: 10
A158: Daniel WENDLING | B158: Médecin | C158: MSD France | D158: 28/11/2015 | E158: REPAS | F158: 55
A159: Daniel WENDLING | B159: Médecin | C159: MSD France | D159: 2015-12-03 | E159: REPAS | F159: 23
A160: Francis BERENBAUM | B160: Médecin | C160: MSD France | D160: 2012-01-06 | E160: REPAS | F160: 19
A161: Francis BERENBAUM | B161: Médecin | C161: AbbVie | D161: 2013-03-08 | E161: AUTRE : [HOSPITALITE] | F161: 24
A162: Francis BERENBAUM | B162: Médecin | C162: AbbVie | D162: 19/03/2013 | E162: AUTRE : [HOSPITALITE] | F162: 29
A163: Francis BERENBAUM | B163: Médecin | C163: ROCHE SAS | D163: 30/05/2013 | E163: Restauration | F163: 60
A164: Francis BERENBAUM | B164: Médecin | C164: ROCHE SAS | D164: 30/05/2013 | E164: Frais remboursés (transport) | F164: 47
A165: Francis BERENBAUM | B165: Médecin | C165: ROCHE SAS | D165: 30/05/2013 | E165: Hébergement | F165: 105
A166: Francis BERENBAUM | B166: Médecin | C166: ROCHE SAS | D166: 31/05/2013 | E166: Hébergement | F166: 105
A167: Francis BERENBAUM | B167: Médecin | C167: PFIZER SAS | D167: 26/06/2013 | E167: Repas | F167: 12
A168: Francis BERENBAUM | B168: Médecin | C168: PFIZER SAS | D168: 29/06/2013 | E168: HEBERGEMENT | F168: 130
A169: Francis BERENBAUM | B169: Médecin | C169: PFIZER SAS | D169: 29/06/2013 | E169: REPAS | F169: 111
A170: Francis BERENBAUM | B170: Médecin | C170: AbbVie | D170: 2013-07-12 | E170: Repas | F170: 33
A171: Francis BERENBAUM | B171: Médecin | C171: UCB Pharma SA | D171: 2013-09-12 | E171: Repas | F171: 30
A172: Francis BERENBAUM | B172: Médecin | C172: BRISTOL-MYERS SQUIBB | D172: 26/09/2013 | E172: Transport | F172: 513
A173: Francis BERENBAUM | B173: Médecin | C173: BRISTOL-MYERS SQUIBB | D173: 26/09/2013 | E173: Repas | F173: 42
A174: Francis BERENBAUM | B174: Médecin | C174: AbbVie | D174: 30/09/2013 | E174: Repas | F174: 30
A175: Francis BERENBAUM | B175: Médecin | C175: LES LABORATOIRES SERVIER | D175: 15/10/2013 | E175: Repas | F175: 37
A176: Francis BERENBAUM | B176: Médecin | C176: AbbVie | D176: 18/10/2013 | E176: Repas | F176: 35
A177: Francis BERENBAUM | B177: Médecin | C177: PFIZER SAS | D177: 22/10/2013 | E177: Repas | F177: 23
A178: Francis BERENBAUM | B178: Médecin | C178: PFIZER SAS | D178: 30/10/2013 | E178: AUTRES: INSCRIPTION | F178: 324
A179: Francis BERENBAUM | B179: Médecin | C179: PFIZER SAS | D179: 30/10/2013 | E179: HEBERGEMENT | F179: 1084
A180: Francis BERENBAUM | B180: Médecin | C180: PFIZER SAS | D180: 30/10/2013 | E180: AUTRES: INSCRIPTION | F180: 324
A181: Francis BERENBAUM | B181: Médecin | C181: PFIZER SAS | D181: 30/10/2013 | E181: REPAS | F181: 261
A182: Francis BERENBAUM | B182: Médecin | C182: AbbVie | D182: 13/11/2013 | E182: REPAS | F182: 59
A183: Francis BERENBAUM | B183: Médecin | C183: MSD France | D183: 14/11/2013 | E183: REPAS | F183: 33
A184: Francis BERENBAUM | B184: Médecin | C184: PFIZER SAS | D184: 19/11/2013 | E184: Repas | F184: 34
A185: Francis BERENBAUM | B185: Médecin | C185: UCB Pharma SA | D185: 2013-12-10 | E185: Repas | F185: 57
A186: Francis BERENBAUM | B186: Médecin | C186: AbbVie | D186: 23/01/2014 | E186: REPAS | F186: 30
A187: Francis BERENBAUM | B187: Médecin | C187: MSD France | D187: 2014-02-07 | E187: REPAS | F187: 20
A188: Francis BERENBAUM | B188: Médecin | C188: AbbVie | D188: 13/03/2014 | E188: REPAS | F188: 34
A189: Francis BERENBAUM | B189: Médecin | C189: AbbVie | D189: 2014-04-10 | E189: REPAS | F189: 60
A190: Francis BERENBAUM | B190: Médecin | C190: PFIZER SAS | D190: 18/04/2014 | E190: REPAS | F190: 23
A191: Francis BERENBAUM | B191: Médecin | C191: PFIZER SAS | D191: 29/04/2014 | E191: REPAS | F191: 36
A192: Francis BERENBAUM | B192: Médecin | C192: PFIZER SAS | D192: 29/04/2014 | E192: REPAS | F192: 36
A193: Francis BERENBAUM | B193: Médecin | C193: UCB Pharma SA | D193: 2014-05-05 | E193: Autre : [ Forfait journée détude ou forfait congrès ] | F193: 1550
A194: Francis BERENBAUM | B194: Médecin | C194: UCB Pharma SA | D194: 2014-05-05 | E194: Repas | F194: 53
A195: Francis BERENBAUM | B195: Médecin | C195: UCB Pharma SA | D195: 2014-05-05 | E195: Transport | F195: 124
A196: Francis BERENBAUM | B196: Médecin | C196: AbbVie | D196: 13/05/2014 | E196: REPAS | F196: 34
A197: Francis BERENBAUM | B197: Médecin | C197: Lilly France SAS | D197: 26/05/2014 | E197: REPAS | F197: 32
A198: Francis BERENBAUM | B198: Médecin | C198: BRISTOL-MYERS SQUIBB | D198: 2014-06-04 | E198: Repas | F198: 28
A199: Francis BERENBAUM | B199: Médecin | C199: AbbVie | D199: 30/06/2014 | E199: REPAS | F199: 43
A200: Francis BERENBAUM | B200: Médecin | C200: UCB Pharma SA | D200: 2014-08-06 | E200: Autre : [ Forfait journée détude ou forfait congrès ] | F200: 31
... 1429 more rows

Sheet Conventions signées
A1: Bénéficiaire | B1: Type de bénéficiaire | C1: Entreprise | D1: Date | E1: Période | F1: Objet
A2: Daniel WENDLING | B2: Médecin | C2: LABORATOIRE GLAXOSMITHKLINE | D2: 19/05/2012 | E2: 19/05/2012 - | F2: Autre : [Convention d hospitalite]
A3: Daniel WENDLING | B3: Médecin | C3: MSD France | D3: 21/06/2012 | E3: 21/06/2012 - | F3: CONVENTION D HOSPITALITE
A4: Daniel WENDLING | B4: Médecin | C4: ROCHE SAS | D4: 05/09/2012 | E4: 05/09/2012 - | F4: EXPERT
A5: Daniel WENDLING | B5: Médecin | C5: MSD France | D5: 07/02/2013 | E5: 07/02/2013 - 07/02/2013 | F5: EXPERT
A6: Daniel WENDLING | B6: Médecin | C6: PFIZER SAS | D6: 11/02/2013 | E6: 11/02/2013 - | F6: ORATEUR RP/CONGRES/SYMPOSIUM
A7: Daniel WENDLING | B7: Médecin | C7: MSD France | D7: 19/03/2013 | E7: 19/03/2013 - | F7: EXPERT
A8: Daniel WENDLING | B8: Médecin | C8: MSD France | D8: 19/03/2013 | E8: 19/03/2013 - 19/03/2013 | F8: EXPERT
A9: Daniel WENDLING | B9: Médecin | C9: AbbVie | D9: 22/04/2013 | E9: 22/04/2013 - | F9: AUTRE : [CONTRAT DE COLLABORATION SCIENTIFIQUE]
A10: Daniel WENDLING | B10: Médecin | C10: MSD France | D10: 12/06/2013 | E10: 12/06/2013 - 15/06/2013 | F10: CONVENTION D HOSPITALITE
A11: Daniel WENDLING | B11: Médecin | C11: MSD France | D11: 15/06/2013 | E11: 15/06/2013 - 17/06/2013 | F11: CONVENTION D HOSPITALITE
A12: Daniel WENDLING | B12: Médecin | C12: MSD France | D12: 27/06/2013 | E12: 27/06/2013 - | F12: ORATEUR
A13: Daniel WENDLING | B13: Médecin | C13: PFIZER SAS | D13: 27/08/2013 | E13: 27/08/2013 - | F13: ORATEUR RP/CONGRES/SYMPOSIUM
A14: Daniel WENDLING | B14: Médecin | C14: PFIZER SAS | D14: 13/09/2013 | E14: 13/09/2013 - 14/09/2013 | F14: Orateur RP/Congres/Sympo
A15: Daniel WENDLING | B15: Médecin | C15: AbbVie | D15: 17/09/2013 | E15: 17/09/2013 - | F15: AUTRE: [CONVENTION HOSPITALITE]
A16: Daniel WENDLING | B16: Médecin | C16: ROCHE SAS | D16: 17/09/2013 | E16: 01/10/2013 - 01/10/2013 | F16: Autre : [ Réunion professionnelle ]
A17: Daniel WENDLING | B17: Médecin | C17: MSD France | D17: 24/09/2013 | E17: 24/09/2013 - 25/09/2013 | F17: CONVENTION D HOSPITALITE
A18: Daniel WENDLING | B18: Médecin | C18: Laboratoires Grünenthal SAS | D18: 03/10/2013 | E18: 03/10/2013 - | F18: AUTRE
A19: Daniel WENDLING | B19: Médecin | C19: PFIZER SAS | D19: 01/12/2013 | E19: 01/12/2013 - 03/12/2013 | F19: HOSPITALITE RP/CONGRES / SYMPO
A20: Daniel WENDLING | B20: Médecin | C20: Laboratoires Grünenthal SAS | D20: 09/01/2014 | E20: 09/01/2014 - | F20: REUNION SCIENTIFIQUE
A21: Daniel WENDLING | B21: Médecin | C21: Laboratoires Expanscience | D21: 10/01/2014 | E21: 10/01/2014 - 10/01/2014 | F21: Autre : [STAFF]
A22: Daniel WENDLING | B22: Médecin | C22: AMGEN SAS | D22: 14/01/2014 | E22: 11/02/2014 - 11/02/2014 | F22: AUTRE [CONVENTION D EXPERT]
A23: Daniel WENDLING | B23: Médecin | C23: CHUGAI PHARMA FRANCE | D23: 31/01/2014 | E23: 31/01/2014 - | F23: CONVENTION DE COLLABORATION
A24: Daniel WENDLING | B24: Médecin | C24: PFIZER SAS | D24: 07/02/2014 | E24: 07/02/2014 - 08/02/2014 | F24: HOSPITALITE RP/CONGRES / SYMPO
A25: Daniel WENDLING | B25: Médecin | C25: PFIZER SAS | D25: 07/02/2014 | E25: 07/02/2014 - 08/02/2014 | F25: HOSPITALITE RP/CONGRES / SYMPO
A26: Daniel WENDLING | B26: Médecin | C26: AMGEN SAS | D26: 18/03/2014 | E26: 18/03/2014 - 19/03/2014 | F26: AUTRE [CONVENTION D ORATEUR]
A27: Daniel WENDLING | B27: Médecin | C27: BRISTOL-MYERS SQUIBB | D27: 24/03/2014 | E27: 27/03/2014 - | F27: Autre : [Orateur]
A28: Daniel WENDLING | B28: Médecin | C28: ROCHE SAS | D28: 09/04/2014 | E28: 14/05/2014 - 31/12/2014 | F28: Autre : [ Expert ]
A29: Daniel WENDLING | B29: Médecin | C29: MSD France | D29: 04/05/2014 | E29: 04/05/2014 - | F29: CONVENTION D’HOSPITALITÉ
A30: Daniel WENDLING | B30: Médecin | C30: PFIZER SAS | D30: 15/05/2014 | E30: 15/05/2014 - 16/05/2014 | F30: ORATEUR RP/CONGRES/SYMPOSIUM
A31: Daniel WENDLING | B31: Médecin | C31: MSD France | D31: 19/05/2014 | E31: 19/06/2014 - 19/06/2014 | F31: ORATEUR
A32: Daniel WENDLING | B32: Médecin | C32: AbbVie | D32: 20/05/2014 | E32: 20/05/2014 - | F32: AUTRE: [CONVENTION HOSPITALITE]
A33: Daniel WENDLING | B33: Médecin | C33: CONGRES COLLOQUES CONVENTIONS | D33: 24/05/2014 | E33: 24/05/2014 - 24/05/2014 | F33: CONGRES SYMPOSIUM
A34: Daniel WENDLING | B34: Médecin | C34: MSD France | D34: 11/06/2014 | E34: 11/06/2014 - | F34: CONVENTION D HOSPITALITE
A35: Daniel WENDLING | B35: Médecin | C35: LABORATOIRES MAYOLY SPINDLER | D35: 26/06/2014 | E35: 26/06/2014 - | F35: Conseil Relations professionnelles
A36: Daniel WENDLING | B36: Médecin | C36: AbbVie | D36: 02/07/2014 | E36: 02/07/2014 - | F36: AUTRE : [CONVENTION D HOSPITALITE]
A37: Daniel WENDLING | B37: Médecin | C37: MSD France | D37: 15/07/2014 | E37: 25/08/2014 - 24/08/2015 | F37: EXPERT
A38: Daniel WENDLING | B38: Médecin | C38: MSD France | D38: 06/08/2014 | E38: 10/10/2014 - 11/10/2014 | F38: EXPERT
A39: Daniel WENDLING | B39: Médecin | C39: UCB Pharma SA | D39: 02/09/2014 | E39: 02/09/2014 - 30/11/2014 | F39: Conseil
A40: Daniel WENDLING | B40: Médecin | C40: PFIZER SAS | D40: 02/09/2014 | E40: 02/09/2014 - | F40: CONSEIL
A41: Daniel WENDLING | B41: Médecin | C41: AbbVie | D41: 07/10/2014 | E41: 07/10/2014 - | F41: AUTRE : [CONVENTION D HOSPITALITE]
A42: Daniel WENDLING | B42: Médecin | C42: Laboratoires Expanscience | D42: 21/10/2014 | E42: 21/10/2014 - 21/10/2014 | F42: Formation
A43: Daniel WENDLING | B43: Médecin | C43: PFIZER SAS | D43: 21/10/2014 | E43: 12/12/2014 - 30/06/2015 | F43: Autre : Contrat consultant
A44: Daniel WENDLING | B44: Médecin | C44: PFIZER SAS | D44: 23/10/2014 | E44: 23/10/2014 - 25/10/2014 | F44: Congrès / Symposium
A45: Daniel WENDLING | B45: Médecin | C45: UCB Pharma SA | D45: 13/11/2014 | E45: 01/01/2014 - 31/12/2014 | F45: Autre : [ Collaboration Scientifique ]
A46: Daniel WENDLING | B46: Médecin | C46: MSD France | D46: 18/11/2014 | E46: 18/11/2014 - | F46: CONVENTION D HOSPITALITE
A47: Daniel WENDLING | B47: Médecin | C47: ROCHE SAS | D47: 27/11/2014 | E47: 27/11/2014 - 27/11/2014 | F47: Autre : [ Réunion professionnelle ]
A48: Daniel WENDLING | B48: Médecin | C48: UCB Pharma SA | D48: 13/12/2014 | E48: 13/12/2014 - 14/12/2014 | F48: Autre : [ hospitalité liée à une manifestation scientifique ]
A49: Daniel WENDLING | B49: Médecin | C49: MSD France | D49: 30/01/2015 | E49: 30/01/2015 - | F49: CONVENTION D’HOSPITALITE
A50: Daniel WENDLING | B50: Médecin | C50: BRISTOL-MYERS SQUIBB | D50: 03/02/2015 | E50: 03/02/2015 - | F50: Autre : [Orateur]
A51: Daniel WENDLING | B51: Médecin | C51: UCB Pharma SA | D51: 12/02/2015 | E51: 12/02/2015 - 12/02/2015 | F51: Formation
A52: Daniel WENDLING | B52: Médecin | C52: UCB Pharma SA | D52: 12/02/2015 | E52: 01/05/2015 - 01/05/2015 | F52: Autre : [ Collaboration Scientifique ]
A53: Daniel WENDLING | B53: Médecin | C53: CHUGAI PHARMA FRANCE | D53: 12/02/2015 | E53: 12/02/2015 - | F53: CONVENTION DE COLLABORATION
A54: Daniel WENDLING | B54: Médecin | C54: MSD France | D54: 18/02/2015 | E54: 26/03/2015 - 27/03/2015 | F54: EXPERT
A55: Daniel WENDLING | B55: Médecin | C55: BIOGARAN | D55: 19/02/2015 | E55: 19/02/2015 - | F55: Autre : Manifestation scientifique
A56: Daniel WENDLING | B56: Médecin | C56: PFIZER SAS | D56: 23/02/2015 | E56: 03/04/2015 - 03/04/2015 | F56: Congres / Symposium
A57: Daniel WENDLING | B57: Médecin | C57: NOVARTIS PHARMA SAS | D57: 24/02/2015 | E57: 24/02/2015 - 31/12/2015 | F57: AUTRE : [CONTRAT DE CONSEIL & PRESTATION]
A58: Daniel WENDLING | B58: Médecin | C58: UCB Pharma SA | D58: 09/03/2015 | E58: 19/05/2015 - 19/05/2015 | F58: Autre : [ Collaboration Scientifique ]
A59: Daniel WENDLING | B59: Médecin | C59: AbbVie | D59: 10/03/2015 | E59: 10/03/2015 - | F59: AUTRE: [CONVENTION HOSPITALITE]
A60: Daniel WENDLING | B60: Médecin | C60: UCB Pharma SA | D60: 12/03/2015 | E60: 02/06/2015 - 02/06/2015 | F60: Autre : [ Collaboration Scientifique ]
A61: Daniel WENDLING | B61: Médecin | C61: Laboratoires Grünenthal SAS | D61: 19/03/2015 | E61: 19/03/2015 - | F61: REUNION SCIENTIFIQUE
A62: Daniel WENDLING | B62: Médecin | C62: SWEDISH ORPHAN BIOVITRUM | D62: 23/03/2015 | E62: 23/03/2015 - 23/03/2015 | F62: Autre : [CONVENTION D'HOSPITALITE]
A63: Daniel WENDLING | B63: Médecin | C63: SWEDISH ORPHAN BIOVITRUM | D63: 23/03/2015 | E63: 23/03/2015 - 23/03/2015 | F63: Autre : [ORATEUR]
A64: Daniel WENDLING | B64: Médecin | C64: MSD France | D64: 26/03/2015 | E64: 26/03/2015 - | F64: CONVENTION D’HOSPITALITÉ
A65: Daniel WENDLING | B65: Médecin | C65: PFIZER SAS | D65: 03/04/2015 | E65: 03/04/2015 - 03/04/2015 | F65: Autre : Reunion professionnelle ou scientifique
A66: Daniel WENDLING | B66: Médecin | C66: ROCHE SAS | D66: 10/04/2015 | E66: 10/04/2015 - 11/04/2015 | F66: Autre : [ Runion professionnelle ]
A67: Daniel WENDLING | B67: Médecin | C67: BRISTOL-MYERS SQUIBB | D67: 21/04/2015 | E67: 21/04/2015 - | F67: Autre : [Orateur]
A68: Daniel WENDLING | B68: Médecin | C68: NORDIC PHARMA SAS | D68: 22/04/2015 | E68: 30/04/2015 - 02/05/2015 | F68: Autre : [ Orateur ]
A69: Daniel WENDLING | B69: Médecin | C69: Laboratoires Expanscience | D69: 28/04/2015 | E69: 28/04/2015 - 28/04/2015 | F69: Formation
A70: Daniel WENDLING | B70: Médecin | C70: MSD France | D70: 28/04/2015 | E70: 18/06/2015 - 18/06/2015 | F70: ORATEUR
A71: Daniel WENDLING | B71: Médecin | C71: MSD France | D71: 06/05/2015 | E71: 20/06/2015 - 20/06/2015 | F71: ORATEUR
A72: Daniel WENDLING | B72: Médecin | C72: UCB Pharma SA | D72: 19/05/2015 | E72: 19/05/2015 - 19/05/2015 | F72: Autre : [ hospitalité liée à une manifestation scientifique ]
A73: Daniel WENDLING | B73: Médecin | C73: MSD France | D73: 20/05/2015 | E73: 27/06/2015 - 27/06/2015 | F73: EXPERT
A74: Daniel WENDLING | B74: Médecin | C74: AbbVie | D74: 21/05/2015 | E74: 21/05/2015 - | F74: AUTRE: [CONVENTION HOSPITALITE]
A75: Daniel WENDLING | B75: Médecin | C75: ROCHE SAS | D75: 01/06/2015 | E75: 01/06/2015 - 01/06/2015 | F75: Autre : [ Runion professionnelle ]
A76: Daniel WENDLING | B76: Médecin | C76: UCB Pharma SA | D76: 02/06/2015 | E76: 02/06/2015 - 02/06/2015 | F76: Autre : [ hospitalité liée à une manifestation scientifique ]
A77: Daniel WENDLING | B77: Médecin | C77: CONGRES COLLOQUES CONVENTIONS | D77: 06/06/2015 | E77: 06/06/2015 - 06/06/2015 | F77: CONGRES SYMPOSIUM
A78: Daniel WENDLING | B78: Médecin | C78: MSD France | D78: 10/06/2015 | E78: 10/06/2015 - | F78: CONVENTION D’HOSPITALITÉ
A79: Daniel WENDLING | B79: Médecin | C79: MSD France | D79: 20/06/2015 | E79: 20/06/2015 - | F79: CONVENTION D’HOSPITALITÉ
A80: Daniel WENDLING | B80: Médecin | C80: MSD France | D80: 27/06/2015 | E80: 27/06/2015 - | F80: CONVENTION D’HOSPITALITÉ
A81: Daniel WENDLING | B81: Médecin | C81: PFIZER SAS | D81: 30/06/2015 | E81: 30/06/2015 - 30/06/2015 | F81: Autre : Reunion professionnelle ou scientifique
A82: Daniel WENDLING | B82: Médecin | C82: MSD France | D82: 29/07/2015 | E82: 22/09/2015 - 22/09/2015 | F82: EXPERT
A83: Daniel WENDLING | B83: Médecin | C83: PFIZER SAS | D83: 27/08/2015 | E83: 11/09/2015 - 12/09/2015 | F83: Congrès / Symposium
A84: Daniel WENDLING | B84: Médecin | C84: ROCHE SAS | D84: 10/09/2015 | E84: 10/09/2015 - 10/09/2015 | F84: Autre : [ Réunion professionnelle ]
A85: Daniel WENDLING | B85: Médecin | C85: PFIZER SAS | D85: 11/09/2015 | E85: 23/09/2015 - 23/09/2015 | F85: Congrès / Symposium
A86: Daniel WENDLING | B86: Médecin | C86: PFIZER SAS | D86: 11/09/2015 | E86: 11/09/2015 - 12/09/2015 | F86: Autre : Réunion professionnelle ou scientifique
A87: Daniel WENDLING | B87: Médecin | C87: PFIZER SAS | D87: 23/09/2015 | E87: 23/09/2015 - 23/09/2015 | F87: Autre : Réunion professionnelle ou scientifique
A88: Daniel WENDLING | B88: Médecin | C88: ROCHE SAS | D88: 26/11/2015 | E88: 26/11/2015 - 26/11/2015 | F88: Autre : [ Reunion professionnelle ]
A89: Daniel WENDLING | B89: Médecin | C89: MSD France | D89: 27/11/2015 | E89: 27/11/2015 - | F89: CONVENTION D’HOSPITALITÉ
A90: Daniel WENDLING | B90: Médecin | C90: PFIZER SAS | D90: 13/12/2015 | E90: 13/12/2015 - 15/12/2015 | F90: Congrès / Symposium
A91: Daniel WENDLING | B91: Médecin | C91: NOVARTIS PHARMA SAS | D91: 14/12/2015 | E91: 14/12/2015 - 14/12/2015 | F91: AUTRE : [CONTRAT DE CONSEIL & PRESTATION]
A92: Francis BERENBAUM | B92: Médecin | C92: ROCHE SAS | D92: 20/04/2012 | E92: 20/04/2012 - | F92: EXPERT
A93: Francis BERENBAUM | B93: Médecin | C93: PFIZER SAS | D93: 13/05/2013 | E93: 13/05/2013 - | F93: CONSEIL
A94: Francis BERENBAUM | B94: Médecin | C94: ROCHE SAS | D94: 30/05/2013 | E94: 30/05/2013 - 31/05/2013 | F94: Congrès / Symposium
A95: Francis BERENBAUM | B95: Médecin | C95: PFIZER SAS | D95: 20/06/2013 | E95: 20/06/2013 - | F95: CONSEIL
A96: Francis BERENBAUM | B96: Médecin | C96: PFIZER SAS | D96: 28/06/2013 | E96: 28/06/2013 - 29/06/2013 | F96: Orateur RP/Congres/Sympo
A97: Francis BERENBAUM | B97: Médecin | C97: BRISTOL-MYERS SQUIBB | D97: 12/08/2013 | E97: 26/09/2013 - | F97: Autre : [Orateur]
A98: Francis BERENBAUM | B98: Médecin | C98: DIAXONHIT | D98: 21/08/2013 | E98: 21/08/2013 - 31/12/2013 | F98: Conseil
A99: Francis BERENBAUM | B99: Médecin | C99: AbbVie | D99: 28/08/2013 | E99: 08/10/2013 - | F99: AUTRE: [CONTRAT DE COLLABORATION SCENTIFIQUE]
A100: Francis BERENBAUM | B100: Médecin | C100: PFIZER SAS | D100: 25/10/2013 | E100: 25/10/2013 - 30/10/2013 | F100: Hospitalite RP/Congres / Sympo
A101: Francis BERENBAUM | B101: Médecin | C101: MSD France | D101: 31/12/2013 | E101: 26/09/2013 - | F101: RECHERCHE BIOMEDICALE
A102: Francis BERENBAUM | B102: Médecin | C102: UCB Pharma SA | D102: 07/03/2014 | E102: 01/01/2014 - 31/12/2014 | F102: Autre : [ Collaboration Scientifique ]
A103: Francis BERENBAUM | B103: Médecin | C103: AbbVie | D103: 10/04/2014 | E103: 10/04/2014 - | F103: AUTRE: [CONVENTION HOSPITALITE]
A104: Francis BERENBAUM | B104: Médecin | C104: UCB Pharma SA | D104: 05/05/2014 | E104: 05/05/2014 - 07/05/2014 | F104: Congrès / symposium
A105: Francis BERENBAUM | B105: Médecin | C105: AbbVie | D105: 13/05/2014 | E105: 13/05/2014 - | F105: AUTRE : [CONVENTION D HOSPITALITE]
A106: Francis BERENBAUM | B106: Médecin | C106: AbbVie | D106: 24/06/2014 | E106: 24/06/2014 - | F106: AUTRE: [CONTRAT DE COLLABORATION SCIENTIFIQUE]
A107: Francis BERENBAUM | B107: Médecin | C107: AbbVie | D107: 24/06/2014 | E107: 24/06/2014 - | F107: AUTRE: [CONTRAT DE COLLABORATION SCIENTIFIQUE]
A108: Francis BERENBAUM | B108: Médecin | C108: Arthritis Fondation Courtin | D108: 25/07/2014 | E108: 25/07/2014 - | F108: CONVENTION RECHERCHE
A109: Francis BERENBAUM | B109: Médecin | C109: Arthritis Fondation Courtin | D109: 17/09/2014 | E109: 17/09/2014 - | F109: CONVENTION RECHERCHE
A110: Francis BERENBAUM | B110: Médecin | C110: Arthritis Fondation Courtin | D110: 17/09/2014 | E110: 17/09/2014 - | F110: CONVENTION RECHERCHE
A111: Francis BERENBAUM | B111: Médecin | C111: UCB Pharma SA | D111: 02/10/2014 | E111: 02/10/2014 - 02/10/2014 | F111: Congrès / symposium
A112: Francis BERENBAUM | B112: Médecin | C112: PFIZER SAS | D112: 15/11/2014 | E112: 15/11/2014 - 19/11/2014 | F112: Congrès / Symposium
A113: Francis BERENBAUM | B113: Médecin | C113: UCB Pharma SA | D113: 19/11/2014 | E113: 01/01/2015 - 31/12/2015 | F113: Autre : [ Collaboration Scientifique ]
A114: Francis BERENBAUM | B114: Médecin | C114: BIOGARAN | D114: 01/12/2014 | E114: 13/12/2014 - 17/06/2015 | F114: AUTRE [EXPERT]
A115: Francis BERENBAUM | B115: Médecin | C115: ROCHE SAS | D115: 04/12/2014 | E115: 04/12/2014 - 04/12/2014 | F115: Autre : [ Réunion professionnelle ]
A116: Francis BERENBAUM | B116: Médecin | C116: UCB Pharma SA | D116: 11/02/2015 | E116: 11/02/2015 - 11/02/2015 | F116: CONVENTION D'HOSPITALITÉ
A117: Francis BERENBAUM | B117: Médecin | C117: Laboratoires Expanscience | D117: 17/02/2015 | E117: 01/01/2015 - 31/12/2015 | F117: Evaluation
A118: Francis BERENBAUM | B118: Médecin | C118: MSD France | D118: 18/02/2015 | E118: 26/03/2015 - 27/03/2015 | F118: EXPERT
A119: Francis BERENBAUM | B119: Médecin | C119: MSD France | D119: 26/03/2015 | E119: 26/03/2015 - | F119: CONVENTION D’HOSPITALITÉ
A120: Francis BERENBAUM | B120: Médecin | C120: PFIZER SAS | D120: 21/04/2015 | E120: 26/06/2015 - 27/06/2015 | F120: Congres / Symposium
A121: Francis BERENBAUM | B121: Médecin | C121: PFIZER SAS | D121: 08/06/2015 | E121: 08/06/2015 - 27/06/2015 | F121: Conseil
A122: Francis BERENBAUM | B122: Médecin | C122: NORDIC PHARMA SAS | D122: 10/06/2015 | E122: 10/06/2015 - 13/06/2015 | F122: congrès / symposium
A123: Francis BERENBAUM | B123: Médecin | C123: PFIZER SAS | D123: 25/06/2015 | E123: 25/06/2015 - 25/06/2015 | F123: Autre : Reunion professionnelle ou scientifique
A124: Francis BERENBAUM | B124: Médecin | C124: PFIZER SAS | D124: 26/06/2015 | E124: 26/06/2015 - 27/06/2015 | F124: Autre : Reunion professionnelle ou scientifique
A125: Francis BERENBAUM | B125: Médecin | C125: PFIZER SAS | D125: 30/06/2015 | E125: 30/06/2015 - 30/06/2015 | F125: Autre : Reunion professionnelle ou scientifique
A126: Francis BERENBAUM | B126: Médecin | C126: PFIZER SAS | D126: 07/11/2015 | E126: 07/11/2015 - 11/11/2015 | F126: Congrès / Symposium
A127: Francis BERENBAUM | B127: Médecin | C127: ROCHE SAS | D127: 01/12/2015 | E127: 01/12/2015 - 01/12/2015 | F127: Autre : [ Reunion professionnelle ]
A128: Francis BERENBAUM | B128: Médecin | C128: Laboratoires Expanscience | D128: 01/12/2015 | E128: 01/02/2016 - 31/01/2017 | F128: Evaluation
A129: Francis BERENBAUM | B129: Médecin | C129: Regeneron Pharmaceuticals, Inc. | D129: 23/12/2015 | E129: 23/12/2015 - | F129: conseil
A130: René Marc FLIPO | B130: Médecin | C130: MSD France | D130: 09/02/2012 | E130: 09/02/2012 - | F130: CONVENTION D’HOSPITALITÉ
A131: René Marc FLIPO | B131: Médecin | C131: ROCHE SAS | D131: 28/02/2012 | E131: 28/02/2012 - | F131: ORATEUR INTERVENANT
A132: René Marc FLIPO | B132: Médecin | C132: ROCHE SAS | D132: 23/03/2012 | E132: 23/03/2012 - | F132: EXPERT
A133: René Marc FLIPO | B133: Médecin | C133: ROCHE SAS | D133: 31/05/2012 | E133: 31/05/2012 - | F133: ORATEUR INTERVENANT
A134: René Marc FLIPO | B134: Médecin | C134: ROCHE SAS | D134: 18/06/2012 | E134: 18/06/2012 - | F134: EXPERT
A135: René Marc FLIPO | B135: Médecin | C135: ROCHE SAS | D135: 05/07/2012 | E135: 05/07/2012 - | F135: ORATEUR INTERVENANT
A136: René Marc FLIPO | B136: Médecin | C136: ROCHE SAS | D136: 10/08/2012 | E136: 10/08/2012 - | F136: ORATEUR INTERVENANT
A137: René Marc FLIPO | B137: Médecin | C137: MSD France | D137: 24/10/2012 | E137: 04/06/2012 - 31/12/2012 | F137: EXPERT
A138: René Marc FLIPO | B138: Médecin | C138: MSD France | D138: 25/10/2012 | E138: 25/10/2012 - | F138: CONVENTION D HOSPITALITE
A139: René Marc FLIPO | B139: Médecin | C139: AbbVie | D139: 07/12/2012 | E139: 07/12/2012 - | F139: AUTRE : [CONTRAT DE COLLABORATION SCIENTIFIQUE]
A140: René Marc FLIPO | B140: Médecin | C140: PFIZER SAS | D140: 05/01/2013 | E140: 05/01/2013 - | F140: ORATEUR RP/CONGRES/SYMPOSIUM
A141: René Marc FLIPO | B141: Médecin | C141: MSD France | D141: 07/02/2013 | E141: 07/02/2013 - 07/02/2013 | F141: EXPERT
A142: René Marc FLIPO | B142: Médecin | C142: AbbVie | D142: 20/02/2013 | E142: 20/02/2013 - | F142: AUTRE: [CONTRAT DE COLLABORATION SCIENTIFIQUE]
A143: René Marc FLIPO | B143: Médecin | C143: ROCHE SAS | D143: 19/03/2013 | E143: 19/03/2013 - | F143: Orateur intervenant
A144: René Marc FLIPO | B144: Médecin | C144: PFIZER SAS | D144: 20/03/2013 | E144: 20/03/2013 - | F144: ORATEUR RP/CONGRES/SYMPOSIUM
A145: René Marc FLIPO | B145: Médecin | C145: MSD France | D145: 22/03/2013 | E145: 21/05/2013 - 21/05/2013 | F145: CONVENTION D HOSPITALITE
A146: René Marc FLIPO | B146: Médecin | C146: MSD France | D146: 26/04/2013 | E146: 26/04/2013 - 26/04/2013 | F146: ORATEUR
A147: René Marc FLIPO | B147: Médecin | C147: ROCHE SAS | D147: 26/04/2013 | E147: 26/04/2013 - | F147: Expert
A148: René Marc FLIPO | B148: Médecin | C148: MSD France | D148: 26/04/2013 | E148: 06/09/2013 - | F148: ORATEUR
A149: René Marc FLIPO | B149: Médecin | C149: MSD France | D149: 26/04/2013 | E149: 26/04/2013 - | F149: ORATEUR
A150: René Marc FLIPO | B150: Médecin | C150: ROCHE SAS | D150: 29/04/2013 | E150: 29/04/2013 - | F150: Orateur intervenant
A151: René Marc FLIPO | B151: Médecin | C151: PFIZER SAS | D151: 02/05/2013 | E151: 02/05/2013 - 02/05/2013 | F151: CONSEIL
A152: René Marc FLIPO | B152: Médecin | C152: MSD France | D152: 21/05/2013 | E152: 21/05/2013 - | F152: CONVENTION D HOSPITALITE
A153: René Marc FLIPO | B153: Médecin | C153: ROCHE SAS | D153: 30/05/2013 | E153: 30/05/2013 - 31/05/2013 | F153: Congrès / Symposium
A154: René Marc FLIPO | B154: Médecin | C154: PFIZER SAS | D154: 06/06/2013 | E154: 06/06/2013 - | F154: ORATEUR RP/CONGRES/SYMPOSIUM
A155: René Marc FLIPO | B155: Médecin | C155: ROCHE SAS | D155: 12/06/2013 | E155: 12/06/2013 - 16/06/2013 | F155: Congrès / Symposium
A156: René Marc FLIPO | B156: Médecin | C156: MSD France | D156: 30/06/2013 | E156: 06/06/2013 - | F156: RECHERCHE BIOMEDICALE
A157: René Marc FLIPO | B157: Médecin | C157: ROCHE SAS | D157: 03/07/2013 | E157: 03/07/2013 - 06/07/2013 | F157: Autre : [ Orateur / Intervenant ]
A158: René Marc FLIPO | B158: Médecin | C158: JANSSEN-CILAG | D158: 20/07/2013 | E158: 16/09/2013 - 16/09/2013 | F158: CONSEIL
A159: René Marc FLIPO | B159: Médecin | C159: BRISTOL-MYERS SQUIBB | D159: 30/07/2013 | E159: 27/09/2013 - | F159: Autre : [Orateur]
A160: René Marc FLIPO | B160: Médecin | C160: AbbVie | D160: 19/08/2013 | E160: 04/10/2013 - | F160: AUTRE : [CONVENTION SANS REMUNERATION].
A161: René Marc FLIPO | B161: Médecin | C161: AbbVie | D161: 21/08/2013 | E161: 01/10/2013 - | F161: AUTRE: [CONTRAT DE COLLABORATION SCENTIFIQUE]
A162: René Marc FLIPO | B162: Médecin | C162: MSD France | D162: 05/09/2013 | E162: 05/09/2013 - | F162: ORATEUR
A163: René Marc FLIPO | B163: Médecin | C163: PFIZER SAS | D163: 06/09/2013 | E163: 06/09/2013 - 06/09/2013 | F163: ORATEUR RP/CONGRES/SYMPOSIUM
A164: René Marc FLIPO | B164: Médecin | C164: MSD France | D164: 06/09/2013 | E164: 06/09/2013 - 07/09/2013 | F164: CONVENTION D HOSPITALITE
A165: René Marc FLIPO | B165: Médecin | C165: PFIZER SAS | D165: 13/09/2013 | E165: 13/09/2013 - 14/09/2013 | F165: Orateur RP/Congres/Sympo
A166: René Marc FLIPO | B166: Médecin | C166: MSD France | D166: 16/09/2013 | E166: 16/09/2013 - | F166: EXPERT
A167: René Marc FLIPO | B167: Médecin | C167: MSD France | D167: 16/09/2013 | E167: 02/10/2013 - 02/10/2013 | F167: EXPERT
A168: René Marc FLIPO | B168: Médecin | C168: UCB Pharma SA | D168: 17/09/2013 | E168: 17/09/2013 - 17/09/2013 | F168: Autre : [ hospitalité liée à une manifestation scientifique ]
A169: René Marc FLIPO | B169: Médecin | C169: MSD France | D169: 19/09/2013 | E169: 19/09/2013 - | F169: ORATEUR
A170: René Marc FLIPO | B170: Médecin | C170: MSD France | D170: 26/09/2013 | E170: 26/09/2013 - | F170: CONVENTION D HOSPITALITE
A171: René Marc FLIPO | B171: Médecin | C171: MSD France | D171: 26/09/2013 | E171: 26/09/2013 - | F171: CONVENTION D HOSPITALITE
A172: René Marc FLIPO | B172: Médecin | C172: MSD France | D172: 02/10/2013 | E172: 02/10/2013 - 02/10/2013 | F172: EXPERT
A173: René Marc FLIPO | B173: Médecin | C173: MSD France | D173: 07/10/2013 | E173: 07/10/2013 - | F173: ORATEUR
A174: René Marc FLIPO | B174: Médecin | C174: MSD France | D174: 07/10/2013 | E174: 07/11/2013 - 07/11/2013 | F174: ORATEUR
A175: René Marc FLIPO | B175: Médecin | C175: LABORATOIRES MAYOLY SPINDLER | D175: 09/10/2013 | E175: 09/10/2013 - | F175: AUTRE : [RP Table ronde actu Rhumatologie]
A176: René Marc FLIPO | B176: Médecin | C176: PFIZER SAS | D176: 10/10/2013 | E176: 10/10/2013 - 10/10/2013 | F176: ORATEUR RP/CONGRES/SYMPOSIUM
A177: René Marc FLIPO | B177: Médecin | C177: MSD France | D177: 15/10/2013 | E177: 15/10/2013 - | F177: CONVENTION D HOSPITALITE
A178: René Marc FLIPO | B178: Médecin | C178: NORDIC PHARMA SAS | D178: 15/10/2013 | E178: 19/11/2013 - 19/11/2013 | F178: Autre : [ Orateur ]
A179: René Marc FLIPO | B179: Médecin | C179: MSD France | D179: 16/10/2013 | E179: 15/10/2013 - 15/10/2013 | F179: ORATEUR
A180: René Marc FLIPO | B180: Médecin | C180: MSD France | D180: 16/10/2013 | E180: 16/10/2013 - | F180: ORATEUR
A181: René Marc FLIPO | B181: Médecin | C181: MENARINI FRANCE | D181: 22/10/2013 | E181: 22/10/2013 - | F181: CONSEIL
A182: René Marc FLIPO | B182: Médecin | C182: MSD France | D182: 24/10/2013 | E182: 24/10/2013 - | F182: EXPERT
A183: René Marc FLIPO | B183: Médecin | C183: MSD France | D183: 24/10/2013 | E183: 25/11/2013 - 31/12/2014 | F183: EXPERT
A184: René Marc FLIPO | B184: Médecin | C184: PFIZER SAS | D184: 25/10/2013 | E184: 25/10/2013 - 30/10/2013 | F184: Hospitalite RP/Congres / Sympo
A185: René Marc FLIPO | B185: Médecin | C185: NORDIC PHARMA SAS | D185: 29/10/2013 | E185: 02/12/2013 - 02/12/2013 | F185: Autre : [ Orateur ]
A186: René Marc FLIPO | B186: Médecin | C186: MSD France | D186: 31/10/2013 | E186: 31/10/2013 - | F186: EXPERT
A187: René Marc FLIPO | B187: Médecin | C187: MSD France | D187: 31/10/2013 | E187: 02/12/2013 - 02/12/2013 | F187: EXPERT
A188: René Marc FLIPO | B188: Médecin | C188: MSD France | D188: 07/11/2013 | E188: 07/11/2013 - | F188: CONVENTION D HOSPITALITE
A189: René Marc FLIPO | B189: Médecin | C189: UCB Pharma SA | D189: 12/11/2013 | E189: 12/11/2013 - 12/11/2013 | F189: Autre : [ Collaboration Scientifique ]
A190: René Marc FLIPO | B190: Médecin | C190: MSD France | D190: 13/11/2013 | E190: 13/12/2013 - 13/12/2013 | F190: EXPERT
A191: René Marc FLIPO | B191: Médecin | C191: MSD France | D191: 13/11/2013 | E191: 13/11/2013 - | F191: EXPERT
A192: René Marc FLIPO | B192: Médecin | C192: ROCHE SAS | D192: 14/11/2013 | E192: 14/11/2013 - 14/11/2013 | F192: Autre : [ Orateur / Intervenant ]
A193: René Marc FLIPO | B193: Médecin | C193: MSD France | D193: 19/11/2013 | E193: 19/11/2013 - | F193: EXPERT
A194: René Marc FLIPO | B194: Médecin | C194: HOSPIRA FRANCE | D194: 25/11/2013 | E194: 01/02/2014 - | F194: AUTRE[EXPERTISE]
A195: René Marc FLIPO | B195: Médecin | C195: ROCHE SAS | D195: 01/12/2013 | E195: 01/12/2013 - 03/12/2013 | F195: Autre : [ Orateur / Intervenant ]
A196: René Marc FLIPO | B196: Médecin | C196: MSD France | D196: 01/12/2013 | E196: 01/12/2013 - 03/12/2013 | F196: CONVENTION D HOSPITALITE
A197: René Marc FLIPO | B197: Médecin | C197: MSD France | D197: 13/12/2013 | E197: 13/12/2013 - | F197: CONVENTION D HOSPITALITE
A198: René Marc FLIPO | B198: Médecin | C198: AMGEN SAS | D198: 20/12/2013 | E198: 06/02/2014 - 06/02/2014 | F198: AUTRE [CONVENTION D HOSPITALITE]
A199: René Marc FLIPO | B199: Médecin | C199: MSD France | D199: 13/01/2014 | E199: 13/02/2014 - 17/10/2014 | F199: EXPERT
A200: René Marc FLIPO | B200: Médecin | C200: MENARINI FRANCE | D200: 13/01/2014 | E200: 13/01/2014 - | F200: prestation scientifique
... 809 more rows

Sheet FIRMES
A1: FIRME dans Transparence.sante.gouv.fr | B1: FIRME (libellé de regroupement)
A2: 22 Juillet Conseil | B2: 22 Juillet Conseil
A3: 3-D Matrix Europe SAS | B3: 3-D Matrix Europe SAS
A4: 3M Belgium bvba/sprl | B4: 3M Belgium bvba/sprl
A5: 3M Deutschland GmbH | B5: 3M Deutschland GmbH
A6: 3M France | B6: 3M France
A7: 3M MAROC | B7: 3M MAROC
A8: 3M United Kingdom PLC | B8: 3M United Kingdom PLC
A9: 3S ORTHO | B9: 3S ORTHO
A10: 4Tech Cardio Ltd | B10: 4Tech Cardio Ltd
A11: 7 MED INDUSTRIE | B11: 7 MED INDUSTRIE
A12: A a Z SANTE | B12: A a Z SANTE
A13: A DEC INTERNATIONAL INC | B13: A DEC INTERNATIONAL INC
A14: A.I.R. | B14: A.I.R.
A15: A.MENARINI diagnostics | B15: A.MENARINI diagnostics
A16: A.R.C. Pharma | B16: A.R.C. Pharma
A17: A+A | B17: A+A
A18: a2m rehateam | B18: a2m rehateam
A19: AADAIRC | B19: AADAIRC
A20: ABBOTT FRANCE | B20: ABBOTT
A21: ABBOTT HEALTHCARE SAS | B21: ABBOTT
A22: ABBOTT PRODUCTS SAS | B22: ABBOTT
A23: AbbVie | B23: AbbVie
A24: ABENA-FRANTEX | B24: ABENA-FRANTEX
A25: Abiomed GmbH | B25: Abiomed GmbH
A26: ABM | B26: ABM
A27: abmedica | B27: abmedica
A28: ABS-Bolton Medical | B28: ABS-Bolton Medical
A29: accomed | B29: accomed
A30: ACCOVION SARL | B30: ACCOVION SARL
A31: Accuray Europe | B31: Accuray Europe
A32: ACIST Europe BV | B32: ACIST Europe BV
A33: ACM | B33: ACM
A34: Acorda Therapeutics, Inc. | B34: Acorda Therapeutics, Inc.
A35: ACOUSTIQUE MEDICAL DU LITTORAL | B35: ACOUSTIQUE MEDICAL DU LITTORAL
A36: ACS-Agence Conseil Santé | B36: ACS-Agence Conseil Santé
A37: ACT+ Consulting | B37: ACT+ Consulting
A38: ACTAVIS GROUP PTC EHF | B38: ACTAVIS GROUP PTC EHF
A39: Actelion Pharmaceuticals France | B39: Actelion
A40: Actelion Pharmaceuticals Ltd | B40: Actelion
A41: ACTION D'ECLAT | B41: ACTION D'ECLAT
A42: ADAIR | B42: ADAIR
A43: ADAPSIA | B43: ADAPSIA
A44: ADDMEDICA | B44: ADDMEDICA
A45: ADEP ASSISTANCE | B45: ADEP ASSISTANCE
A46: Adept Field Solutions | B46: Adept Field Solutions
A47: ADIR ASSISTANCE | B47: ADIR ASSISTANCE
A48: Adiral Assistance | B48: Adiral Assistance
A49: ADIRAL Association d'Aide aux Traitements Ã Domicile | B49: ADIRAL Association d'Aide aux Traitements Ã Domicile
A50: ADLER ORTHO France | B50: ADLER ORTHO France
A51: Adler Ortho srl | B51: Adler Ortho srl
A52: ADS ALSACE | B52: ADS ALSACE
A53: ADS CHAMPAGNE ARDENNE | B53: ADS CHAMPAGNE ARDENNE
A54: ADS LORRAINE | B54: ADS LORRAINE
A55: ADVANCE SAS | B55: ADVANCE SAS
A56: Advanced Accelerator Applications | B56: Advanced Accelerator Applications
A57: Advanced Accelerator Applications International SA | B57: Advanced Accelerator Applications International SA
A58: ADVANCED BIONICS SARL | B58: ADVANCED BIONICS SARL
A59: Advanced Medical Services, AMS GmbH | B59: Advanced Medical Services, AMS GmbH
A60: ADVICENNE | B60: ADVICENNE
A61: Aegerion Pharmaceuticals | B61: Aegerion Pharmaceuticals
A62: AERIS Medical SAS | B62: AERIS Medical SAS
A63: AEROGEN | B63: AEROGEN
A64: AFFINITES SANTE | B64: AFFINITES SANTE
A65: Agence Conseil 3P | B65: Agence Conseil 3P
A66: Agfa HealthCare France SA | B66: Agfa HealthCare France SA
A67: AGFA Healthcare Imaging Agents France | B67: AGFA Healthcare Imaging Agents France
A68: AGILENT TECHNOLOGIES FRANCE | B68: AGILENT TECHNOLOGIES FRANCE
A69: AGIR Ã dom Assistance | B69: AGIR Ã dom Assistance
A70: Aide aux Insuffisants Respiratoires de la Région Auvergne (A.I.R.R.A.) | B70: Aide aux Insuffisants Respiratoires de la Région Auvergne (A.I.R.R.A.)
A71: AIR A DOMICILE | B71: AIR A DOMICILE
A72: AIR DE BRETAGNE | B72: AIR DE BRETAGNE
A73: AIR DOMICILE SANTE ALPES | B73: AIR DOMICILE SANTE ALPES
A74: AIR DOMICILE VALLEE DU RHONE | B74: AIR DOMICILE VALLEE DU RHONE
A75: Air Liquide European Homecare Operations Services | B75: Air Liquide European Homecare Operations Services
A76: AIR LIQUIDE MEDICAL SYSTEMS | B76: AIR LIQUIDE MEDICAL SYSTEMS
A77: AIR LIQUIDE SANTE (INTERNATIONAL) | B77: AIR LIQUIDE SANTE (INTERNATIONAL)
A78: AIR LIQUIDE SANTE FRANCE | B78: AIR LIQUIDE SANTE FRANCE
A79: AIR SANTE | B79: AIR SANTE
A80: AIRE | B80: AIRE
A81: AIREL | B81: AIREL
A82: AIXPER'F | B82: AIXPER'F
A83: AJ4MED | B83: AJ4MED
A84: ALAIN AFFLELOU FRANCHISEUR | B84: ALAIN AFFLELOU FRANCHISEUR
A85: ALAIR & AVD | B85: ALAIR & AVD
A86: Alcimed GmbH | B86: Alcimed GmbH
A87: Alcimed Inc | B87: Alcimed Inc
A88: Alcimed SARL | B88: Alcimed SARL
A89: Alcimed SAS | B89: Alcimed SAS
A90: Alcimed Sprl | B90: Alcimed Sprl
A91: Alcura France | B91: Alcura France
A92: ALERE E-SANTE SAS | B92: ALERE E-SANTE SAS
A93: ALERE SAS | B93: ALERE SAS
A94: Alexion Pharma France | B94: Alexion Pharma France
A95: ALFA WASSERMANN PHARMA | B95: ALFA WASSERMANN PHARMA
A96: Align Technology SAS | B96: Align Technology SAS
A97: Alimera Sciences France | B97: Alimera Sciences France
A98: ALISEO | B98: ALISEO
A99: Alizé Pharma SAS | B99: Alizé Pharma SAS
A100: Alizé Santé | B100: Alizé Santé
A101: ALK-Abelló | B101: ALK-Abelló
A102: ALKAPHARM | B102: ALKAPHARM
A103: All Global | B103: All Global
A104: ALLERGAN FRANCE | B104: ALLERGAN FRANCE
A105: alliance healthcare repartition | B105: alliance healthcare repartition
A106: ALLIANCE'PERF | B106: ALLIANCE'PERF
A107: ALLP MEDITEC | B107: ALLP MEDITEC
A108: ALMIRALL SAS | B108: ALMIRALL SAS
A109: ALMUS | B109: ALMUS
A110: ALPHATEC SPINE INC | B110: ALPHATEC SPINE INC
A111: ALPHEGA | B111: ALPHEGA
A112: ALPINE SCIENTIFIC | B112: ALPINE SCIENTIFIC
A113: ALSANZA sarl | B113: ALSANZA sarl
A114: ALTEOR | B114: ALTEOR
A115: alveol'air | B115: alveol'air
A116: ALVIMEDICA Medical Technologie France | B116: ALVIMEDICA Medical Technologie France
A117: AM AUDITION | B117: AM AUDITION
A118: AMADEUS SANTE | B118: AMADEUS SANTE
A119: AMC APPAREILLAGE ET MATERIEL DE CARDIOLOGIE | B119: AMC APPAREILLAGE ET MATERIEL DE CARDIOLOGIE
A120: American Medical Systems France | B120: American Medical Systems France
A121: American Orthodontics | B121: American Orthodontics
A122: AMGEN SAS | B122: Amgen
A123: AMICUS THERAPEUTICS SAS | B123: AMICUS THERAPEUTICS SAS
A124: AMO FRANCE SAS | B124: AMO FRANCE SAS
A125: AMO Germany GmbH | B125: AMO Germany GmbH
A126: AMO INC USA | B126: AMO INC USA
A127: Amplifon Groupe France | B127: Amplifon Groupe France
A128: AMPLITUDE | B128: AMPLITUDE
A129: AMS 25 | B129: AMS 25
A130: AMS 70 | B130: AMS 70
A131: AMS 88 | B131: AMS 88
A132: ANERA | B132: ANERA
A133: ANNAYAKE | B133: ANNAYAKE
A134: ANTADIR | B134: ANTADIR
A135: Antadir Assistance SAS | B135: Antadir Assistance SAS
A136: ANTHOGYR | B136: ANTHOGYR
A137: ANTILLES AUDITION GUADELOUPE | B137: ANTILLES AUDITION GUADELOUPE
A138: AOTI Ltd | B138: AOTI Ltd
A139: APARD | B139: APARD
A140: apol | B140: apol
A141: APOLLO ENDOSURGERY UK LTD | B141: APOLLO ENDOSURGERY UK LTD
A142: Applied Medical France | B142: Applied Medical France
A143: APROVA | B143: APROVA
A144: APTALIS PHARMA SAS | B144: APTALIS PHARMA SAS
A145: Aptiv Solutions | B145: Aptiv Solutions
A146: AQUILAB | B146: AQUILAB
A147: ARAIR Assistance | B147: ARAIR Assistance
A148: ARAIR Assistance S.A. | B148: ARAIR Assistance S.A.
A149: ARAIRCHAR | B149: ARAIRCHAR
A150: arard | B150: arard
A151: ARCHIMEDES PHARMA France | B151: ARCHIMEDES PHARMA France
A152: ARCOS | B152: ARCOS
A153: ARGON MEDICAL DEVICES | B153: ARGON MEDICAL DEVICES
A154: ARIAD Pharmaceuticals (France) | B154: ARIAD Pharmaceuticals (France)
A155: ARJOHUNTLEIGH | B155: ARJOHUNTLEIGH
A156: ARROW GENERIQUES SAS | B156: ARROW GENERIQUES SAS
A157: ARSENAL-CDM | B157: ARSENAL-CDM
A158: ART&COS | B158: ART&COS
A159: ARTHES | B159: ARTHES
A160: Arthrex SAS | B160: Arthrex SAS
A161: Arthritis Fondation Courtin | B161: Arthritis Fondation Courtin
A162: ArthroCare France | B162: ArthroCare France
A163: Artialis | B163: Artialis
A164: ARX SAS | B164: ARX SAS
A165: ASAHI INTECC CO., LTD. | B165: ASAHI INTECC CO., LTD.
A166: ASDIA | B166: ASDIA
A167: Asept InMed | B167: Asept InMed
A168: ASKLE SANTE | B168: ASKLE SANTE
A169: ASPEN FRANCE | B169: ASPEN FRANCE
A170: ASPIDE AESTHETIC | B170: ASPIDE AESTHETIC
A171: ASPIDE MEDICAL | B171: ASPIDE MEDICAL
A172: ASSISTANCE DU GRAND EST | B172: ASSISTANCE DU GRAND EST
A173: ASSISTANCES MEDICALES SPECIALISEES | B173: ASSISTANCES MEDICALES SPECIALISEES
A174: Association Françoise et Eugène MINKOWSKI pour la santé mentale des migrants | B174: Association Françoise et Eugène MINKOWSKI pour la santé mentale des migrants
A175: Association pour le Développement de lâ€™Enseignement et des Recherches auprès des universités des centres de recherches et des entreprises dâ€™Aquitaine (ADERA) | B175: Association pour le Développement de lâ€™Enseignement et des Recherches auprès des universités des centres de recherches et des entreprises dâ€™Aquitaine (ADERA)
A176: ASTELLAS PHARMA | B176: ASTELLAS PHARMA
A177: ASTELLAS PHARMA B.V. | B177: ASTELLAS PHARMA B.V.
A178: ASTELLAS PHARMA GLOBAL DEVELOPMENT | B178: ASTELLAS PHARMA GLOBAL DEVELOPMENT
A179: ASTELLAS PHARMA GmbH | B179: ASTELLAS PHARMA GmbH
A180: ASTELLAS PHARMA Inc | B180: ASTELLAS PHARMA Inc
A181: ASTELLAS PHARMA Ltd | B181: ASTELLAS PHARMA Ltd
A182: ASTELLAS PHARMA S.A. | B182: ASTELLAS PHARMA S.A.
A183: Astellas Pharma Singapore Pte. Ltd. | B183: Astellas Pharma Singapore Pte. Ltd.
A184: ASTELLAS PHARMACEUTICALS AE | B184: ASTELLAS PHARMACEUTICALS AE
A185: ASTON MEDICAL Anciennement SOCIETE DE GENIE MEDICAL - S.G.M. | B185: ASTON MEDICAL Anciennement SOCIETE DE GENIE MEDICAL - S.G.M.
A186: ASTRAZENECA | B186: ASTRAZENECA
A187: Athersys, Inc. | B187: Athersys, Inc.
A188: Atlantic Pharmacetuicals Ltd | B188: Atlantic Pharmacetuicals Ltd
A189: ATLANTIC SURDITE | B189: ATLANTIC SURDITE
A190: ATLANTIS DIFFUSION | B190: ATLANTIS DIFFUSION
A191: ATLANTIS DIFFUSION SAM | B191: ATLANTIS DIFFUSION SAM
A192: ATOS MEDICAL SAS | B192: ATOS MEDICAL SAS
A193: AtriCure, Inc. | B193: AtriCure, Inc.
A194: AUDARMOR | B194: AUDARMOR
A195: Audika Groupe SA | B195: Audika Groupe SA
A196: audio acoustique sud | B196: audio acoustique sud
A197: AUDIOCONSULTING | B197: AUDIOCONSULTING
A198: AUDIOELYSCAU | B198: AUDIOELYSCAU
A199: AUDIOMEDI SAS | B199: AUDIOMEDI SAS
A200: AudioNova France SAS | B200: AudioNova France SAS
... 1715 more rows

Sheet AVANTAGES
A1: TYPE_AVTG dans Transparence.sante.gouv.fr | B1: TYPE_AVTG (libellé de regroupement)
A2: [Autre] inscription congrès | B2: Inscription
A3: [HOSPITALITE] | B3: Hospitalité
A4: [REPAS] | B4: Repas
A5: AUTRE | B5: Autre
A6: Autre : [ Forfait journée détude ] | B6: Autre
A7: Autre : [ Forfait journée détude ou forfait congrès ] | B7: Congrès
A8: Autre : [ Inscription ] | B8: Inscription
A9: Autre : [ECHANTILLON] | B9: Autre
A10: Autre : [HONORAIRE] | B10: Autre
A11: Autre : [Hospitalité Evenement Scientifique] | B11: Hospitalité
A12: AUTRE : [HOSPITALITE] | B12: Hospitalité
A13: AUTRE : [INSCRIPTION CONGRÈS SCIENTIFIQUE] | B13: Inscription
A14: Autre : [Inscription Evenement Scientifique] | B14: Inscription
A15: Autre : [Inscription] | B15: Inscription
A16: Autre : [note de frais] | B16: Autre
A17: AUTRE : [PARTICIPATION EVENEMENT SCIENTIFIQUE] | B17: Congrès
A18: AUTRE : [PAUSE] | B18: Autre
A19: Autre : [Remboursement de frais] | B19: Autre
A20: AUTRE : [REMBOURSEMENT FRAIS LOGISTIQUE] | B20: Autre
A21: Autre : [Restauration] | B21: Repas
A22: AUTRE : CONGRES | B22: Autre
A23: Autre : Frais d'inscription Congrès | B23: Inscription
A24: AUTRE : HONORAIRE CONFERENCE TELEPHONIQUE | B24: Autre
A25: AUTRE : HONORAIRES CONFERENCE TELEPHONIQUE | B25: Autre
A26: Autre : Inscription | B26: Inscription
A27: AUTRE : REMBOURSEMENT DE FRAIS | B27: Autre
A28: AUTRE : REPAS PROFESSIONNEL | B28: Repas
A29: AUTRE : REUNION | B29: Autre
A30: AUTRE : RNT | B30: Autre
A31: AUTRE [ENQUETE] | B31: Autre
A32: AUTRE [FRAIS D INSCRIPTION] | B32: Inscription
A33: AUTRE [INSCRIPTION] | B33: Inscription
A34: AUTRE [PAUSE] | B34: Autre
A35: AUTRE [RESTAURATION STAFF] | B35: Repas
A36: Autre: [Enquête] | B36: Autre
A37: AUTRE: [INSCRIPTION] | B37: Inscription
A38: AUTRE: INSCRIPTION | B38: Inscription
A39: AUTRE: SOIREE/SOIREE | B39: Autre
A40: AUTRES | B40: Autre
A41: AUTRES: INSCRIPTION | B41: Inscription
A42: CADEAUX | B42: Autre
A43: COLLATION | B43: Repas
A44: conseil | B44: Conseil
A45: Dédommagement | B45: Autre
A46: DEJEUNER | B46: Repas
A47: DEJEUNER/DEJEUNER | B47: Repas
A48: Déplacement | B48: Transport
A49: Droits d'auteur pris en charge par UCB | B49: Autre
A50: EPU | B50: Repas
A51: EPU/DINER | B51: Repas
A52: FRAIS DE BOUCHE | B52: Repas
A53: Frais de dÃƒÂ©placement | B53: Transport
A54: FRAIS DE DEPLACEMENT | B54: Transport
A55: Frais remboursés (transport) | B55: Transport
A56: H‚bergement | B56: Hébergement
A57: HÃ©bergement | B57: Hébergement
A58: HÃ‰BERGEMENT | B58: Hébergement
A59: HEBERGEMENT | B59: Hébergement
A60: Hébergement | B60: Hébergement
A61: Hébérgement | B61: Hébergement
A62: HEBERGEMENT SUR TOUTE LA DUREE DU CONGRES | B62: Hébergement
A63: Hébergement, restauration, transport | B63: Hospitalité
A64: HOSPITALITE | B64: Hospitalité
A65: HOSPITALITÉ | B65: Hospitalité
A66: HOSPITALITE - RELATIONS NORMALES DE TRAVAIL | B66: Hospitalité
A67: INCRIPTION | B67: Inscription
A68: INDEMNITE | B68: Autre
A69: INSCRIPTION | B69: Inscription
A70: INSCRIPTION CONGRES | B70: Inscription
A71: INVITATIONS | B71: Autre
A72: Logement | B72: Hébergement
A73: Prestation en tant que formateur et orateur | B73: Autre
A74: Repas | B74: Repas
A75: REPAS CONGRES | B75: Repas
A76: REPAS IMPROMPTU | B76: Repas
A77: REPAS MANIFESTATION DE FORMATION | B77: Repas
A78: REPAS PROFESSIONNEL | B78: Repas
A79: REPAS RELATION NORMALE DE TRAVAIL | B79: Repas
A80: REPAS REUNION | B80: Repas
A81: REPAS RÉUNION HOSPITALIÈRE | B81: Repas
A82: REPAS REUNION SCIENTIFIQUE | B82: Repas
A83: REPAS SUR TOUTE LA DUREE DU CONGRES | B83: Repas
A84: Restauration | B84: Repas
A85: SOIREE | B85: Repas
A86: SOIREE/REPAS | B86: Repas
A87: SOIREE/RP | B87: Autre
A88: STAFF | B88: Autre
A89: Taxonomie EFPIA | B89: Autre
A90: TRANBSPORT | B90: Transport
A91: TRANSFERT-REPAS(DINER) | B91: Repas
A92: Transport | B92: Transport
A93: Transport pris en charge par UCB | B93: Transport
A94: VISITE/(2 X GO-ON 25MG) | B94: Autre
A95: VISITE/(3 X GO-ON 25MG) | B95: Autre
A96: VISITE/GO-ON 25MG | B96: Autre

Sheet CONVENTIONS
A1: TYPE_CONVENTION dans Transparence.sante.gouv.fr | B1: TYPE_CONVENTION (libellé de regroupement)
A2: [AUTRE] : [CONVENTION HOSPITALITE] | B2: Hospitalité
A3: [BOARD EXPERTS] | B3: Réunion de « Board »
A4: [MARKETING] | B4: Etude de marché
A5: [ORATEUR] | B5: Orateur
A6: [ORATEURS MODERATEURS] | B6: Orateur
A7: [REUNION INFORMATION MEDICALE] | B7: Réunion professionnelle
A8: AMERICAN COLLEGE OF RHEUMATHOLOGY ACR/ARHP ANNUAL MEETING 2012 | B8: Réunion professionnelle
A9: ASSISES BARCELONE | B9: Réunion professionnelle
A10: AUTRE | B10: Autre
A11: AUTRE | B11: Autre
A12: Autre : [ Collaboration Scientifique ] | B12: Expert
A13: Autre : [ Collaboration Scientifique ] | B13: Expert
A14: Autre : [ EPU ] | B14: Réunion professionnelle
A15: Autre : [ EPU ] | B15: Réunion professionnelle
A16: Autre : [ Expert ] | B16: Expert
A17: Autre : [ Expert ] | B17: Expert
A18: Autre : [ hospitalité liée à une manifestation scientifique ] | B18: Hospitalité
A19: Autre : [ hospitalité liée à une manifestation scientifique ] | B19: Hospitalité
A20: Autre : [ Manifestation professionnelle ] | B20: Réunion professionnelle
A21: Autre : [ Orateur / Intervenant ] | B21: Orateur
A22: Autre : [ Orateur ] | B22: Orateur
A23: Autre : [ Prestation ] | B23: Conseil
A24: Autre : [ R‚union professionnelle ] | B24: Réunion professionnelle
A25: Autre : [ R‚union professionnelle ] | B25: Réunion professionnelle
A26: Autre : [ Runion professionnelle ] | B26: Réunion professionnelle
A27: Autre : [ Runion professionnelle ] | B27: Réunion professionnelle
A28: Autre : [ Reunion professionnelle ] | B28: Réunion professionnelle
A29: Autre : [ Réunion professionnelle ] | B29: Réunion professionnelle
A30: Autre : [ Reunion professionnelle ] | B30: Réunion professionnelle
A31: Autre : [ Réunion professionnelle ] | B31: Réunion professionnelle
A32: Autre : [collaboration scientifique] | B32: Expert
A33: Autre : [Communication scientifique] | B33: Conseil
A34: Autre : [Consultant (HCP)] | B34: Conseil
A35: Autre : [Consultant (HCP)] | B35: Conseil
A36: Autre : [Consultant] | B36: Conseil
A37: Autre : [Contrat autre] | B37: Autre
A38: Autre : [Contrat autre] | B38: Autre
A39: AUTRE : [CONTRAT DE COLLABORATION SCIENTIFIQUE] | B39: Expert
A40: AUTRE : [CONTRAT DE COLLABORATION SCIENTIFIQUE] | B40: Expert
A41: AUTRE : [CONTRAT DE CONSEIL & PRESTATION] | B41: Conseil
A42: AUTRE : [CONTRAT DE CONSEIL & PRESTATION] | B42: Conseil
A43: AUTRE : [CONTRAT D'ORATEUR] | B43: Orateur
A44: AUTRE : [CONTRAT D'ORATEUR] | B44: Orateur
A45: Autre : [CONTRAT_DE_PRESTATIONS_DE_SERVICES] | B45: Conseil
A46: AUTRE : [CONVENTION D HOSPITALITE] | B46: Hospitalité
A47: AUTRE : [CONVENTION D HOSPITALITE] | B47: Hospitalité
A48: Autre : [Convention d’Hospitalité] | B48: Hospitalité
A49: Autre : [CONVENTION D'HOSPITALITE] | B49: Hospitalité
A50: AUTRE : [CONVENTION SANS REMUNERATION]. | B50: Autre
A51: Autre : [entretien] | B51: Etude de marché
A52: Autre : [Expertise] | B52: Expert
A53: AUTRE : [HOSPITALITÉ EVENEMENT SCIENTIFIQUE] | B53: Hospitalité
A54: Autre : [Hospitalité Evenement] | B54: Hospitalité
A55: Autre : [Hospitalité Evenement] | B55: Hospitalité
A56: Autre : [Hospitalité Genzyme] | B56: Hospitalité
A57: Autre : [Hospitalité] | B57: Hospitalité
A58: Autre : [Opération SA/Journée-Soirée] | B58: Autre
A59: Autre : [Opérations Genzyme] | B59: Autre
A60: Autre : [Orateur] | B60: Orateur
A61: Autre : [Orateur] | B61: Orateur
A62: AUTRE : [PARTICIPATION RÉUNION SCIENTIFIQUE] | B62: Réunion professionnelle
A63: AUTRE : [PARTICIPATION R�ION SCIENTIFIQUE] | B63: Réunion professionnelle
A64: Autre : [Recherche biomédicale] | B64: Recherche Clinique
A65: Autre : [Recherche biomédicale] | B65: Recherche Clinique
A66: Autre : [Recherche/Développement] | B66: Recherche Clinique
A67: Autre : [Recherche/Développement] | B67: Recherche Clinique
A68: Autre : [Réunion] | B68: Réunion professionnelle
A69: AUTRE : [RP Table ronde actu Rhumatologie] | B69: Réunion professionnelle
A70: Autre : [STAFF] | B70: Réunion professionnelle
A71: Autre : Auteur - rédacteur | B71: Rédacteur
A72: Autre : Contrat consultant | B72: Conseil
A73: Autre : Contrat consultant | B73: Conseil
A74: Autre : Contrat intervenant | B74: Orateur
A75: Autre : Contrat intervenant | B75: Orateur
A76: autre : enquête téléphonique | B76: Etude de marché
A77: autre : enquête téléphonique | B77: Etude de marché
A78: autre : enquête téléphonique | B78: Etude de marché
A79: autre : enquête web | B79: Etude de marché
A80: autre : enquête web | B80: Etude de marché
A81: Autre : ETUDE DE MARCHE | B81: Etude de marché
A82: Autre : Etude de marché | B82: Etude de marché
A83: Autre : Intervenant (Orateur/ ModÃ©rateur/ PrÃ©sident...) | B83: Orateur
A84: Autre : Intervenant (Orateur/ Modérateur/ Président...) | B84: Orateur
A85: AUTRE : MANIFESTATION DE PROMOTION | B85: Autre
A86: Autre : Manifestation scientifique | B86: Réunion professionnelle
A87: Autre : ORATEUR REUNION POST EULAR MONTPELLIER | B87: Orateur
A88: AUTRE : PARTICIPATION A MANIFESTATION SCIENTIFIQUE | B88: Orateur
A89: Autre : Prestation de service | B89: Conseil
A90: Autre : Prestation de service | B90: Conseil
A91: AUTRE : REFLEXION SCIENTFIQUE EVENEMENT INTERDISCIPLINAIRE | B91: Conseil
A92: Autre : Reunion professionnelle ou scientifique | B92: Réunion professionnelle
A93: Autre : Réunion professionnelle ou scientifique | B93: Réunion professionnelle
A94: Autre : Reunion professionnelle ou scientifique | B94: Réunion professionnelle
A95: Autre : Réunion professionnelle ou scientifique | B95: Réunion professionnelle
A96: Autre : RP de type EPU (2007-01) | B96: Réunion professionnelle
A97: AUTRE [CONNEXION] | B97: Autre
A98: AUTRE [CONTRAT D ORATEUR] | B98: Orateur
A99: AUTRE [CONTRAT D ORATEUR] | B99: Orateur
A100: AUTRE [CONTRAT DE CONSULTANT] | B100: Conseil
A101: AUTRE [CONTRAT DE CONSULTANT] | B101: Conseil
A102: AUTRE [CONTRAT ORATEUR] | B102: Orateur
A103: AUTRE [CONVENTION D EXPERT] | B103: Expert
A104: AUTRE [CONVENTION D EXPERT] | B104: Expert
A105: AUTRE [CONVENTION D HOSPITALITE] | B105: Hospitalité
A106: AUTRE [CONVENTION D ORATEUR] | B106: Orateur
A107: AUTRE [CONVENTION D ORATEUR] | B107: Orateur
A108: AUTRE [EXPERT] | B108: Expert
A109: AUTRE [EXPERT] | B109: Expert
A110: AUTRE: [CONTRAT DE COLLABORATION SCENTIFIQUE] | B110: Expert
A111: AUTRE: [CONTRAT DE COLLABORATION SCENTIFIQUE] | B111: Expert
A112: AUTRE: [CONTRAT DE COLLABORATION SCIENTIFIQUE] | B112: Expert
A113: AUTRE: [CONTRAT DE COLLABORATION SCIENTIFIQUE] | B113: Expert
A114: AUTRE: [CONVENTION HOSPITALITE] | B114: Hospitalité
A115: AUTRE: [CONVENTION HOSPITALITE] | B115: Hospitalité
A116: AUTRE: [ETUDE DE MARCHE] | B116: Etude de marché
A117: AUTRE: COLLABORATION POUR UNE ETUDE DE MARCHÉ | B117: Etude de marché
A118: autre: ETUDE | B118: Etude de marché
A119: AUTRE: ETUDES DE MARCHE SONDAGES | B119: Etude de marché
A120: Autre: Intervenant | B120: Orateur
A121: autre: REDACTION D'ARTICLES | B121: Rédacteur
A122: AUTRE[EXPERTISE] | B122: Expert
A123: Autre[ORATEUR REUNION POST EULAR AGEN] | B123: Orateur
A124: Autre[ORATEUR REUNION POST EULAR BORDEAUX] | B124: Orateur
A125: Autre[ORATEUR REUNION POST EULAR ROUEN] | B125: Orateur
A126: Autre[ORATEUR REUNION POST EULAR TOULOUSE] | B126: Orateur
A127: Autre[ORATEUR REUNION POST EULAR TOURS] | B127: Orateur
A128: Board | B128: Réunion de « Board »
A129: Collaboration Editions Scientifiques | B129: Rédacteur
A130: Collaboration Scientifique - Conseil | B130: Conseil
A131: COLLABORATION SCIENTIFIQUE ET PROFESSIONNELLE | B131: Expert
A132: Comite Echange scientifique | B132: Expert
A133: Comite Expert | B133: Expert
A134: Congrs / Symposium | B134: Réunion professionnelle
A135: CongrÃ¨s / Symposium | B135: Réunion professionnelle
A136: CONGRES | B136: Réunion professionnelle
A137: Congrès | B137: Réunion professionnelle
A138: CONGRES | B138: Réunion professionnelle
A139: CONGRES / SYMPOSIUM | B139: Réunion professionnelle
A140: Congrès / symposium | B140: Réunion professionnelle
A141: Congres / Symposium | B141: Réunion professionnelle
A142: Congrès / Symposium | B142: Réunion professionnelle
A143: CONGRES SYMPOSIUM | B143: Réunion professionnelle
A144: CONGRES/SYMPOSIUM | B144: Réunion professionnelle
A145: congrès-symposium | B145: Réunion professionnelle
A146: conseil | B146: Conseil
A147: Conseil | B147: Conseil
A148: CONSEIL | B148: Conseil
A149: Conseil et Communication Médico-Scientifique | B149: Conseil
A150: Conseil Relations professionnelles | B150: Conseil
A151: Conseil réunion d'experts | B151: Conseil
A152: Conseil, réunion d'experts | B152: Conseil
A153: Consultance | B153: Conseil
A154: Consultance (rhumatologie) | B154: Conseil
A155: Consultation Scientifique | B155: Conseil
A156: CONTRAT DE CONSULTANT | B156: Conseil
A157: CONTRAT DE PRESTATION DE SERVICE | B157: Conseil
A158: CONTRAT D'ORATEUR | B158: Orateur
A159: CONTRAT ORATEUR | B159: Orateur
A160: CONVENTION D HOSPITALITE | B160: Hospitalité
A161: CONVENTION D HOSPITALITE | B161: Hospitalité
A162: CONVENTION D’HOSPITALITÉ | B162: Hospitalité
A163: CONVENTION D’HOSPITALITE | B163: Hospitalité
A164: CONVENTION D’HOSPITALITÉ | B164: Hospitalité
A165: CONVENTION DE COLLABORATION | B165: Expert
A166: CONVENTION DE COLLABORATION | B166: Expert
A167: CONVENTION DE CONSULTANT | B167: Conseil
A168: CONVENTION DE RECHERCHE | B168: Recherche Clinique
A169: CONVENTION DE RECHERCHE | B169: Recherche Clinique
A170: Convention de recherche biomédicale /Annexe: Roles et responsabilites des differentes parties impliquees | B170: Recherche Clinique
A171: Convention de recherche biomédicale /Annexe: Roles et responsabilites des differentes parties impliquees | B171: Recherche Clinique
A172: Convention de recherche biomédicale Investigateur-Coordinateur | B172: Recherche Clinique
A173: CONVENTION D'HOSPITALITE | B173: Hospitalité
A174: CONVENTION D'HOSPITALITÉ | B174: Hospitalité
A175: CONVENTION D'HOSPITALITE | B175: Hospitalité
A176: CONVENTION D'HOSPITALITÉ | B176: Hospitalité
A177: CONVENTION D'ORATEUR RÉUNION PROFESSIONNELLE | B177: Orateur
A178: CONVENTION RECHERCHE | B178: Recherche Clinique
A179: CONVENTION RECHERCHE | B179: Recherche Clinique
A180: EDITION | B180: Rédacteur
A181: ESCEO | B181: Autre
A182: ETUDE DE MARCHE | B182: Etude de marché
A183: ETUDE DE MARCHE | B183: Etude de marché
A184: ETUDE DE MARCHE | B184: Etude de marché
A185: ETUDE DE MARCHE | B185: Etude de marché
A186: Evaluation | B186: Autre
A187: EXPERT | B187: Expert
A188: EXPERT | B188: Expert
A189: EXPERTISE SCIENTIFIQUE | B189: Réunion professionnelle
A190: EXPERTISE SCIENTIFIQUE | B190: Expert
A191: FORMATION | B191: Formateur
A192: FORMATION | B192: Formateur
A193: Formation, Conseil et Congrès | B193: Conseil
A194: HOSPITALITE RP/CONGRES / SYMPO | B194: Hospitalité
A195: HOSPITALITE RP/CONGRES / SYMPO | B195: Hospitalité
A196: HOSPITALITE RP/CONGRES/SYMPO | B196: Hospitalité
A197: INVITATION | B197: Hospitalité
A198: MARKETING | B198: Etude de marché
A199: ORATEUR | B199: Orateur
A200: ORATEUR | B200: Orateur
... 25 more rows

Sheet Conception
B2: Concepteur :
D4: François PESTY
D5: Pharmacien, Ancien Interne des Hôpitaux de Paris, Institut Supérieur de Gestion,
D6: Consultant indépendant,
D7: Expert-Conseil en organisation et informatisation du circuit du médicament / Optimisation des approvisionnements et des stocks pharmaceutiques / Pilotage « médico-économique » des médicaments et dispositifs médicaux / Campagne « pilotes » de visites médicalisées des délégués de l’assurance maladie sur le médicament / Pertinence des traitements médicamenteux
D12: 2, square Gay Lussac
D13: 78330 Fontenay le Fleury
D14: Francois.PESTY@Wanadoo.fr
D15: 01 30 45 03 59 / 06 88 89 53 51
B18: François PESTY est membre de l'association FORMINDEP,

Sheet Tableaux de synthèse
C3: Synthèse | F3: Avantages perçus | N3: Conventions signées | Y3: Montants des avantages versés par les entreprises - Montants des avantages versés par les entreprises - Montants des avantages versés par les entreprises - Montants des avantages versés | CC3: Nombres d'avantages versés par les entreprises - Nombres d'avantages versés par les entreprises - Nombres d'avantages versés par les entreprises - Nombres d'avantages versés par les entreprises - Nombres d'avantages versés par les entreprises - | EG3: Nombres de conventions signées avec les entreprises - Nombres de conventions signées avec les entreprises - Nombres de conventions signées avec les entreprises - Nombres de conventions signées avec les entreprises - Nombres de conventions signées avec les entreprises -
B4: Bénéficiaire | C4: Total avantages perçus (€) | D4: Nombre d'avantages perçus | E4: Nombre de conventions signées | F4: Transport | G4: Hébergement | H4: Repas | I4: Hospitalité | J4: Inscription | K4: Conseil | L4: Congrès | M4: Autre | N4: Hospitalité | O4: Orateur | P4: Réunion professionnelle | Q4: Expert | R4: Conseil | S4: Recherche Clinique | T4: Etude de marché | U4: Formateur | V4: Rédacteur | W4: Réunion de « Board » | X4: Autre | Y4: MSD France | Z4: Pfizer | AA4: AbbVie | AB4: Bristol -Myers Squibb | AC4: Nordic Pharma | AD4: Amgen | AE4: NOVARTIS | AF4: Roche | AG4: IMPACT MEDICOM | AH4: Lilly | AI4: UCB Pharma | AJ4: Regeneron Pharma | AK4: Expanscience | AL4: Janssen-Cilag | AM4: GSK | AN4: SANOFI AVENTIS FRANCE | AO4: CHUGAI | AP4: Alexion Pharma France | AQ4: SEPROPHARM INTERNATIONAL | AR4: RE-IMAGINE Health Agency | AS4: LIVE ! BY GL EVENTS | AT4: GENEVRIER | AU4: LES SERVIER | AV4: OVERCOME | AW4: MENARINI | AX4: PACKAGE | AY4: CROMA | AZ4: Icomed | BA4: CELGENE | BB4: BIOGARAN | BC4: BIOCODEX | BD4: QualWorld | BE4: SWEDISH ORPHAN BIOVITRUM | BF4: Actelion | BG4: PRECIPHAR | BH4: Qiagen France SAS | BI4: MAYOLY SPINDLER | BJ4: ROTTAPHARM | BK4: TRB CHEMEDICA | BL4: Genzyme | BM4: HOSPIRA | BN4: Grünenthal | BO4: GILEAD SCIENCES | BP4: ABBOTT | BQ4: THE BINDING SITE GROUP LTD | BR4: MEDEXACT | BS4: Arthrex SAS | BT4: BRACCO IMAGING FRANCE | BU4: CSL BEHRING SA | BV4: ROCHE DIAGNOSTICS FRANCE | BW4: MYLAN | BX4: Biomarin Europe Ltd. | BY4: NOVEX PHARMA | BZ4: GIBAUD | CA4: ASTELLAS PHARMA | CB4: BIOGEN FRANCE SAS | CC4: AbbVie | CD4: MSD France | CE4: Bristol -Myers Squibb | CF4: Pfizer | CG4: Amgen | CH4: Roche | CI4: UCB Pharma | CJ4: Nordic Pharma | CK4: Lilly | CL4: Janssen-Cilag | CM4: NOVARTIS | CN4: CHUGAI | CO4: BIOGARAN | CP4: GSK | CQ4: Expanscience | CR4: Icomed | CS4: SWEDISH ORPHAN BIOVITRUM | CT4: SEPROPHARM INTERNATIONAL | CU4: MAYOLY SPINDLER | CV4: Actelion | CW4: CROMA | CX4: SANOFI AVENTIS FRANCE | CY4: ROTTAPHARM | CZ4: HOSPIRA | DA4: PRECIPHAR | DB4: LES SERVIER | DC4: CELGENE | DD4: Grünenthal | DE4: LIVE ! BY GL EVENTS | DF4: Genzyme | DG4: Alexion Pharma France | DH4: GENEVRIER | DI4: BIOCODEX | DJ4: MEDEXACT | DK4: MENARINI | DL4: THE BINDING SITE GROUP LTD | DM4: GILEAD SCIENCES | DN4: PACKAGE | DO4: RE-IMAGINE Health Agency | DP4: IMPACT MEDICOM | DQ4: OVERCOME | DR4: TRB CHEMEDICA | DS4: ABBOTT | DT4: NOVEX PHARMA | DU4: GIBAUD | DV4: Regeneron Pharma | DW4: QualWorld | DX4: ROCHE DIAGNOSTICS FRANCE | DY4: MYLAN | DZ4: ASTELLAS PHARMA | EA4: Qiagen France SAS | EB4: Biomarin Europe Ltd. | EC4: CSL BEHRING SA | ED4: BIOGEN FRANCE SAS | EE4: BRACCO IMAGING FRANCE | EF4: Arthrex SAS | EG4: MSD France | EH4: Pfizer | EI4: AbbVie | EJ4: Roche | EK4: Amgen | EL4: Bristol -Myers Squibb | EM4: UCB Pharma | EN4: Nordic Pharma | EO4: NOVARTIS | EP4: Janssen-Cilag | EQ4: Lilly | ER4: BIOGARAN | ES4: GENEVRIER | ET4: Expanscience | EU4: CHUGAI | EV4: CONGRES COLLOQUES CONVENTIONS | EW4: Arthritis Fondation Courtin | EX4: SANOFI AVENTIS FRANCE | EY4: SWEDISH ORPHAN BIOVITRUM | EZ4: A+A | FA4: Grünenthal | FB4: MENARINI | FC4: PRECIPHAR | FD4: INC RESEARCH, LLC | FE4: MAYOLY SPINDLER | FF4: BIOCODEX | FG4: ASTRAZENECA | FH4: Genzyme | FI4: CELGENE | FJ4: BOEHRINGER INGELHEIM FRANCE | FK4: RE-IMAGINE Health Agency | FL4: Actelion | FM4: Bone Therapeutics | FN4: LIVE ! BY GL EVENTS | FO4: ICON CLINICAL RESEARCH SARL | FP4: PR EDITIONS SAS | FQ4: CROMA | FR4: GSK | FS4: DIAXONHIT | FT4: Regeneron Pharma | FU4: HOSPIRA | FV4: PIERRE FABRE MEDICAMENT | FW4: IMS Medical Radar | FX4: QualWorld | FY4: H.A.C.Pharma | FZ4: TEVA SANTE SAS | GA4: LES SERVIER | GB4: GNM Healthcare Consulting Ltd | GC4: TBWA\ADELPHI | GD4: Alexion Pharma France | GE4: GLOBAL MEDIA SANTE
B5: René Marc FLIPO | C5: =SUMPRODUCT(('Avantages perçus'!$A$2:$A$30000=B5)*('Avantages perçus'!$F$2:$F$30000)) -> 102741 | D5: =COUNTIFS('Avantages perçus'!$A$2:$A$30000,B5,'Avantages perçus'!$F$2:$F$30000,">0") -> 356 | E5: =COUNTIFS('Conventions signées'!$A$2:$A$15000,B5,'Conventions signées'!$A$2:$A$15000,"*") -> 210 | F5: 62968 | G5: 11371 | H5: 9890 | I5: 5004 | J5: 4276 | K5: 0 | L5: 401 | M5: 8831 | N5: 42 | O5: 51 | P5: 25 | Q5: 60 | R5: 25 | S5: 6 | T5: 0 | U5: 0 | V5: 0 | W5: 0 | X5: 1 | Y5: 37077 | Z5: 12080 | AA5: 22366 | AB5: 8024 | AC5: 3347 | AD5: 127 | AE5: 478 | AF5: 5650 | AG5: 8000 | AH5: 0 | AI5: 1556 | AJ5: 0 | AK5: 0 | AL5: 1440 | AM5: 35 | AN5: 0 | AO5: 901 | AP5: 0 | AQ5: 0 | AR5: 400 | AS5: 0 | AT5: 0 | AU5: 93 | AV5: 170 | AW5: 397 | AX5: 0 | AY5: 0 | AZ5: 85 | BA5: 243 | BB5: 0 | BC5: 0 | BD5: 0 | BE5: 24 | BF5: 0 | BG5: 0 | BH5: 0 | BI5: 148 | BJ5: 0 | BK5: 0 | BL5: 83 | BM5: 0 | BN5: 0 | BO5: 0 | BP5: 0 | BQ5: 0 | BR5: 17 | BS5: 0 | BT5: 0 | BU5: 0 | BV5: 0 | BW5: 0 | BX5: 0 | BY5: 0 | BZ5: 0 | CA5: 0 | CB5: 0 | CC5: 85 | CD5: 87 | CE5: 41 | CF5: 26 | CG5: 3 | CH5: 45 | CI5: 16 | CJ5: 11 | CK5: 0 | CL5: 7 | CM5: 4 | CN5: 8 | CO5: 0 | CP5: 1 | CQ5: 0 | CR5: 3 | CS5: 1 | CT5: 0 | CU5: 5 | CV5: 0 | CW5: 0 | CX5: 0 | CY5: 0 | CZ5: 0 | DA5: 0 | DB5: 2 | DC5: 3 | DD5: 0 | DE5: 0 | DF5: 1 | DG5: 0 | DH5: 0 | DI5: 0 | DJ5: 1 | DK5: 3 | DL5: 0 | DM5: 0 | DN5: 0 | DO5: 1 | DP5: 1 | DQ5: 1 | DR5: 0 | DS5: 0 | DT5: 0 | DU5: 0 | DV5: 0 | DW5: 0 | DX5: 0 | DY5: 0 | DZ5: 0 | EA5: 0 | EB5: 0 | EC5: 0 | ED5: 0 | EE5: 0 | EF5: 0 | EG5: 73 | EH5: 26 | EI5: 20 | EJ5: 27 | EK5: 2 | EL5: 20 | EM5: 7 | EN5: 8 | EO5: 3 | EP5: 6 | EQ5: 0 | ER5: 0 | ES5: 0 | ET5: 0 | EU5: 3 | EV5: 1 | EW5: 1 | EX5: 0 | EY5: 1 | EZ5: 0 | FA5: 0 | FB5: 3 | FC5: 0 | FD5: 0 | FE5: 2 | FF5: 0 | FG5: 2 | FH5: 1 | FI5: 1 | FJ5: 1 | FK5: 1 | FL5: 0 | FM5: 0 | FN5: 0 | FO5: 0 | FP5: 0 | FQ5: 0 | FR5: 0 | FS5: 0 | FT5: 0 | FU5: 1 | FV5: 0 | FW5: 0 | FX5: 0 | FY5: 0 | FZ5: 0 | GA5: 0 | GB5: 0 | GC5: 0 | GD5: 0 | GE5: 0
B6: Thierry SCHAEVERBEKE | C6: =SUMPRODUCT(('Avantages perçus'!$A$2:$A$30000=B6)*('Avantages perçus'!$F$2:$F$30000)) -> 49348 | D6: =COUNTIFS('Avantages perçus'!$A$2:$A$30000,B6,'Avantages perçus'!$F$2:$F$30000,">0") -> 240 | E6: =COUNTIFS('Conventions signées'!$A$2:$A$15000,B6,'Conventions signées'!$A$2:$A$15000,"*") -> 158 | F6: 30458 | G6: 6247 | H6: 6106 | I6: 3303 | J6: 2014 | K6: 0 | L6: 0 | M6: 1220 | N6: 28 | O6: 33 | P6: 38 | Q6: 39 | R6: 11 | S6: 4 | T6: 2 | U6: 1 | V6: 0 | W6: 0 | X6: 2 | Y6: 3515 | Z6: 13886 | AA6: 7362 | AB6: 10235 | AC6: 6857 | AD6: 337 | AE6: 1424 | AF6: 2555 | AG6: 1200 | AH6: 350 | AI6: 179 | AJ6: 0 | AK6: 0 | AL6: 511 | AM6: 20 | AN6: 0 | AO6: 37 | AP6: 0 | AQ6: 0 | AR6: 0 | AS6: 0 | AT6: 0 | AU6: 0 | AV6: 247 | AW6: 0 | AX6: 0 | AY6: 0 | AZ6: 0 | BA6: 0 | BB6: 11 | BC6: 0 | BD6: 0 | BE6: 72 | BF6: 78 | BG6: 86 | BH6: 204 | BI6: 0 | BJ6: 0 | BK6: 0 | BL6: 0 | BM6: 0 | BN6: 0 | BO6: 119 | BP6: 0 | BQ6: 0 | BR6: 0 | BS6: 0 | BT6: 0 | BU6: 30 | BV6: 0 | BW6: 0 | BX6: 22 | BY6: 0 | BZ6: 0 | CA6: 0 | CB6: 11 | CC6: 59 | CD6: 34 | CE6: 43 | CF6: 20 | CG6: 9 | CH6: 28 | CI6: 4 | CJ6: 13 | CK6: 3 | CL6: 4 | CM6: 4 | CN6: 1 | CO6: 1 | CP6: 1 | CQ6: 0 | CR6: 0 | CS6: 2 | CT6: 0 | CU6: 0 | CV6: 2 | CW6: 0 | CX6: 0 | CY6: 0 | CZ6: 0 | DA6: 3 | DB6: 0 | DC6: 0 | DD6: 0 | DE6: 0 | DF6: 0 | DG6: 0 | DH6: 0 | DI6: 0 | DJ6: 0 | DK6: 0 | DL6: 0 | DM6: 3 | DN6: 0 | DO6: 0 | DP6: 1 | DQ6: 1 | DR6: 0 | DS6: 0 | DT6: 0 | DU6: 0 | DV6: 0 | DW6: 0 | DX6: 0 | DY6: 0 | DZ6: 0 | EA6: 1 | EB6: 1 | EC6: 1 | ED6: 1 | EE6: 0 | EF6: 0 | EG6: 26 | EH6: 29 | EI6: 27 | EJ6: 29 | EK6: 3 | EL6: 16 | EM6: 5 | EN6: 5 | EO6: 6 | EP6: 1 | EQ6: 1 | ER6: 2 | ES6: 0 | ET6: 0 | EU6: 0 | EV6: 1 | EW6: 1 | EX6: 0 | EY6: 0 | EZ6: 2 | FA6: 0 | FB6: 1 | FC6: 1 | FD6: 0 | FE6: 0 | FF6: 0 | FG6: 0 | FH6: 0 | FI6: 0 | FJ6: 0 | FK6: 0 | FL6: 1 | FM6: 0 | FN6: 0 | FO6: 0 | FP6: 0 | FQ6: 0 | FR6: 0 | FS6: 0 | FT6: 0 | FU6: 0 | FV6: 0 | FW6: 0 | FX6: 0 | FY6: 0 | FZ6: 0 | GA6: 0 | GB6: 0 | GC6: 0 | GD6: 0 | GE6: 1
B7: Alain CANTAGREL | C7: =SUMPRODUCT(('Avantages perçus'!$A$2:$A$30000=B7)*('Avantages perçus'!$F$2:$F$30000)) -> 46742 | D7: =COUNTIFS('Avantages perçus'!$A$2:$A$30000,B7,'Avantages perçus'!$F$2:$F$30000,">0") -> 230 | E7: =COUNTIFS('Conventions signées'!$A$2:$A$15000,B7,'Conventions signées'!$A$2:$A$15000,"*") -> 131 | F7: 25602 | G7: 4953 | H7: 7189 | I7: 7242 | J7: 1024 | K7: 0 | L7: 53 | M7: 679 | N7: 29 | O7: 25 | P7: 19 | Q7: 30 | R7: 10 | S7: 5 | T7: 5 | U7: 6 | V7: 0 | W7: 0 | X7: 2 | Y7: 9370 | Z7: 13351 | AA7: 8776 | AB7: 7960 | AC7: 2664 | AD7: 100 | AE7: 1195 | AF7: 533 | AG7: 0 | AH7: 117 | AI7: 1000 | AJ7: 0 | AK7: 0 | AL7: 866 | AM7: 0 | AN7: 0 | AO7: 174 | AP7: 0 | AQ7: 0 | AR7: 300 | AS7: 0 | AT7: 0 | AU7: 0 | AV7: 0 | AW7: 0 | AX7: 0 | AY7: 0 | AZ7: 0 | BA7: 0 | BB7: 0 | BC7: 0 | BD7: 240 | BE7: 18 | BF7: 78 | BG7: 0 | BH7: 0 | BI7: 0 | BJ7: 0 | BK7: 0 | BL7: 0 | BM7: 0 | BN7: 0 | BO7: 0 | BP7: 0 | BQ7: 0 | BR7: 0 | BS7: 0 | BT7: 0 | BU7: 0 | BV7: 0 | BW7: 0 | BX7: 0 | BY7: 0 | BZ7: 0 | CA7: 0 | CB7: 0 | CC7: 71 | CD7: 46 | CE7: 41 | CF7: 24 | CG7: 3 | CH7: 10 | CI7: 5 | CJ7: 6 | CK7: 4 | CL7: 9 | CM7: 4 | CN7: 2 | CO7: 0 | CP7: 0 | CQ7: 0 | CR7: 0 | CS7: 1 | CT7: 0 | CU7: 0 | CV7: 2 | CW7: 0 | CX7: 0 | CY7: 0 | CZ7: 0 | DA7: 0 | DB7: 0 | DC7: 0 | DD7: 0 | DE7: 0 | DF7: 0 | DG7: 0 | DH7: 0 | DI7: 0 | DJ7: 0 | DK7: 0 | DL7: 0 | DM7: 0 | DN7: 0 | DO7: 1 | DP7: 0 | DQ7: 0 | DR7: 0 | DS7: 0 | DT7: 0 | DU7: 0 | DV7: 0 | DW7: 1 | DX7: 0 | DY7: 0 | DZ7: 0 | EA7: 0 | EB7: 0 | EC7: 0 | ED7: 0 | EE7: 0 | EF7: 0 | EG7: 28 | EH7: 22 | EI7: 26 | EJ7: 12 | EK7: 2 | EL7: 12 | EM7: 6 | EN7: 5 | EO7: 2 | EP7: 2 | EQ7: 1 | ER7: 0 | ES7: 0 | ET7: 0 | EU7: 0 | EV7: 1 | EW7: 0 | EX7: 0 | EY7: 0 | EZ7: 3 | FA7: 0 | FB7: 0 | FC7: 2 | FD7: 2 | FE7: 0 | FF7: 0 | FG7: 0 | FH7: 0 | FI7: 1 | FJ7: 0 | FK7: 0 | FL7: 1 | FM7: 0 | FN7: 0 | FO7: 0 | FP7: 0 | FQ7: 0 | FR7: 0 | FS7: 0 | FT7: 0 | FU7: 0 | FV7: 1 | FW7: 1 | FX7: 1 | FY7: 0 | FZ7: 0 | GA7: 0 | GB7: 0 | GC7: 0 | GD7: 0 | GE7: 0
B8: Thierry THOMAS | C8: =SUMPRODUCT(('Avantages perçus'!$A$2:$A$30000=B8)*('Avantages perçus'!$F$2:$F$30000)) -> 31920 | D8: =COUNTIFS('Avantages perçus'!$A$2:$A$30000,B8,'Avantages perçus'!$F$2:$F$30000,">0") -> 168 | E8: =COUNTIFS('Conventions signées'!$A$2:$A$15000,B8,'Conventions signées'!$A$2:$A$15000,"*") -> 93 | F8: 19604 | G8: 5168 | H8: 3103 | I8: 1755 | J8: 1033 | K8: 0 | L8: 0 | M8: 1257 | N8: 21 | O8: 32 | P8: 7 | Q8: 26 | R8: 3 | S8: 4 | T8: 0 | U8: 0 | V8: 0 | W8: 0 | X8: 0 | Y8: 3189 | Z8: 55 | AA8: 227 | AB8: 305 | AC8: 0 | AD8: 12404 | AE8: 4593 | AF8: 631 | AG8: 0 | AH8: 7860 | AI8: 561 | AJ8: 0 | AK8: 0 | AL8: 20 | AM8: 0 | AN8: 0 | AO8: 365 | AP8: 0 | AQ8: 770 | AR8: 0 | AS8: 335 | AT8: 0 | AU8: 292 | AV8: 0 | AW8: 0 | AX8: 0 | AY8: 0 | AZ8: 54 | BA8: 0 | BB8: 37 | BC8: 0 | BD8: 0 | BE8: 31 | BF8: 21 | BG8: 0 | BH8: 0 | BI8: 0 | BJ8: 0 | BK8: 0 | BL8: 47 | BM8: 0 | BN8: 0 | BO8: 0 | BP8: 0 | BQ8: 70 | BR8: 0 | BS8: 0 | BT8: 0 | BU8: 0 | BV8: 29 | BW8: 24 | BX8: 0 | BY8: 0 | BZ8: 0 | CA8: 0 | CB8: 0 | CC8: 8 | CD8: 19 | CE8: 5 | CF8: 2 | CG8: 65 | CH8: 5 | CI8: 8 | CJ8: 0 | CK8: 23 | CL8: 1 | CM8: 4 | CN8: 3 | CO8: 2 | CP8: 0 | CQ8: 0 | CR8: 2 | CS8: 2 | CT8: 7 | CU8: 0 | CV8: 1 | CW8: 0 | CX8: 0 | CY8: 0 | CZ8: 0 | DA8: 0 | DB8: 2 | DC8: 0 | DD8: 0 | DE8: 2 | DF8: 2 | DG8: 0 | DH8: 0 | DI8: 0 | DJ8: 0 | DK8: 0 | DL8: 3 | DM8: 0 | DN8: 0 | DO8: 0 | DP8: 0 | DQ8: 0 | DR8: 0 | DS8: 0 | DT8: 0 | DU8: 0 | DV8: 0 | DW8: 0 | DX8: 1 | DY8: 1 | DZ8: 0 | EA8: 0 | EB8: 0 | EC8: 0 | ED8: 0 | EE8: 0 | EF8: 0 | EG8: 19 | EH8: 0 | EI8: 2 | EJ8: 1 | EK8: 47 | EL8: 1 | EM8: 1 | EN8: 0 | EO8: 2 | EP8: 0 | EQ8: 7 | ER8: 2 | ES8: 0 | ET8: 0 | EU8: 2 | EV8: 0 | EW8: 0 | EX8: 0 | EY8: 1 | EZ8: 0 | FA8: 0 | FB8: 0 | FC8: 0 | FD8: 0 | FE8: 0 | FF8: 0 | FG8: 0 | FH8: 1 | FI8: 0 | FJ8: 0 | FK8: 0 | FL8: 0 | FM8: 2 | FN8: 2 | FO8: 0 | FP8: 0 | FQ8: 0 | FR8: 0 | FS8: 0 | FT8: 0 | FU8: 0 | FV8: 0 | FW8: 0 | FX8: 0 | FY8: 1 | FZ8: 1 | GA8: 1 | GB8: 0 | GC8: 0 | GD8: 0 | GE8: 0
B9: Daniel WENDLING | C9: =SUMPRODUCT(('Avantages perçus'!$A$2:$A$30000=B9)*('Avantages perçus'!$F$2:$F$30000)) -> 27176 | D9: =COUNTIFS('Avantages perçus'!$A$2:$A$30000,B9,'Avantages perçus'!$F$2:$F$30000,">0") -> 158 | E9: =COUNTIFS('Conventions signées'!$A$2:$A$15000,B9,'Conventions signées'!$A$2:$A$15000,"*") -> 90 | F9: 8232 | G9: 4421 | H9: 3947 | I9: 6867 | J9: 3117 | K9: 0 | L9: 0 | M9: 592 | N9: 27 | O9: 14 | P9: 21 | Q9: 18 | R9: 6 | S9: 0 | T9: 0 | U9: 3 | V9: 0 | W9: 0 | X9: 1 | Y9: 13207 | Z9: 4045 | AA9: 2698 | AB9: 399 | AC9: 1214 | AD9: 94 | AE9: 59 | AF9: 137 | AG9: 0 | AH9: 110 | AI9: 591 | AJ9: 0 | AK9: 54 | AL9: 0 | AM9: 3069 | AN9: 0 | AO9: 371 | AP9: 0 | AQ9: 0 | AR9: 0 | AS9: 291 | AT9: 0 | AU9: 0 | AV9: 0 | AW9: 0 | AX9: 283 | AY9: 0 | AZ9: 57 | BA9: 0 | BB9: 18 | BC9: 0 | BD9: 0 | BE9: 38 | BF9: 0 | BG9: 120 | BH9: 0 | BI9: 50 | BJ9: 28 | BK9: 0 | BL9: 0 | BM9: 40 | BN9: 120 | BO9: 0 | BP9: 0 | BQ9: 0 | BR9: 47 | BS9: 0 | BT9: 0 | BU9: 0 | BV9: 0 | BW9: 0 | BX9: 0 | BY9: 20 | BZ9: 16 | CA9: 0 | CB9: 0 | CC9: 32 | CD9: 42 | CE9: 7 | CF9: 19 | CG9: 3 | CH9: 4 | CI9: 8 | CJ9: 3 | CK9: 5 | CL9: 0 | CM9: 1 | CN9: 6 | CO9: 1 | CP9: 5 | CQ9: 2 | CR9: 2 | CS9: 1 | CT9: 0 | CU9: 1 | CV9: 0 | CW9: 0 | CX9: 0 | CY9: 2 | CZ9: 1 | DA9: 2 | DB9: 0 | DC9: 0 | DD9: 3 | DE9: 2 | DF9: 0 | DG9: 0 | DH9: 0 | DI9: 0 | DJ9: 2 | DK9: 0 | DL9: 0 | DM9: 0 | DN9: 2 | DO9: 0 | DP9: 0 | DQ9: 0 | DR9: 0 | DS9: 0 | DT9: 1 | DU9: 1 | DV9: 0 | DW9: 0 | DX9: 0 | DY9: 0 | DZ9: 0 | EA9: 0 | EB9: 0 | EC9: 0 | ED9: 0 | EE9: 0 | EF9: 0 | EG9: 25 | EH9: 18 | EI9: 7 | EJ9: 8 | EK9: 2 | EL9: 3 | EM9: 9 | EN9: 1 | EO9: 2 | EP9: 0 | EQ9: 0 | ER9: 1 | ES9: 0 | ET9: 3 | EU9: 2 | EV9: 2 | EW9: 0 | EX9: 0 | EY9: 2 | EZ9: 0 | FA9: 3 | FB9: 0 | FC9: 0 | FD9: 0 | FE9: 1 | FF9: 0 | FG9: 0 | FH9: 0 | FI9: 0 | FJ9: 0 | FK9: 0 | FL9: 0 | FM9: 0 | FN9: 0 | FO9: 0 | FP9: 0 | FQ9: 0 | FR9: 1 | FS9: 0 | FT9: 0 | FU9: 0 | FV9: 0 | FW9: 0 | FX9: 0 | FY9: 0 | FZ9: 0 | GA9: 0 | GB9: 0 | GC9: 0 | GD9: 0 | GE9: 0
B10: Pascal CLAUDEPIERRE | C10: =SUMPRODUCT(('Avantages perçus'!$A$2:$A$30000=B10)*('Avantages perçus'!$F$2:$F$30000)) -> 20955 | D10: =COUNTIFS('Avantages perçus'!$A$2:$A$30000,B10,'Avantages perçus'!$F$2:$F$30000,">0") -> 107 | E10: =COUNTIFS('Conventions signées'!$A$2:$A$15000,B10,'Conventions signées'!$A$2:$A$15000,"*") -> 94 | F10: 10329 | G10: 2884 | H10: 4398 | I10: 2419 | J10: 762 | K10: 0 | L10: 53 | M10: 110 | N10: 20 | O10: 15 | P10: 18 | Q10: 26 | R10: 11 | S10: 3 | T10: 0 | U10: 0 | V10: 1 | W10: 0 | X10: 0 | Y10: 3808 | Z10: 11743 | AA10: 1712 | AB10: 2911 | AC10: 0 | AD10: 0 | AE10: 139 | AF10: 77 | AG10: 0 | AH10: 0 | AI10: 358 | AJ10: 0 | AK10: 0 | AL10: 80 | AM10: 20 | AN10: 0 | AO10: 0 | AP10: 0 | AQ10: 0 | AR10: 0 | AS10: 0 | AT10: 0 | AU10: 0 | AV10: 0 | AW10: 0 | AX10: 0 | AY10: 0 | AZ10: 0 | BA10: 0 | BB10: 0 | BC10: 0 | BD10: 0 | BE10: 0 | BF10: 0 | BG10: 0 | BH10: 0 | BI10: 0 | BJ10: 0 | BK10: 0 | BL10: 0 | BM10: 78 | BN10: 17 | BO10: 0 | BP10: 0 | BQ10: 0 | BR10: 0 | BS10: 0 | BT10: 0 | BU10: 0 | BV10: 0 | BW10: 0 | BX10: 0 | BY10: 0 | BZ10: 0 | CA10: 12 | CB10: 0 | CC10: 26 | CD10: 37 | CE10: 6 | CF10: 19 | CG10: 0 | CH10: 3 | CI10: 5 | CJ10: 0 | CK10: 0 | CL10: 1 | CM10: 4 | CN10: 0 | CO10: 0 | CP10: 1 | CQ10: 0 | CR10: 0 | CS10: 0 | CT10: 0 | CU10: 0 | CV10: 0 | CW10: 0 | CX10: 0 | CY10: 0 | CZ10: 3 | DA10: 0 | DB10: 0 | DC10: 0 | DD10: 1 | DE10: 0 | DF10: 0 | DG10: 0 | DH10: 0 | DI10: 0 | DJ10: 0 | DK10: 0 | DL10: 0 | DM10: 0 | DN10: 0 | DO10: 0 | DP10: 0 | DQ10: 0 | DR10: 0 | DS10: 0 | DT10: 0 | DU10: 0 | DV10: 0 | DW10: 0 | DX10: 0 | DY10: 0 | DZ10: 1 | EA10: 0 | EB10: 0 | EC10: 0 | ED10: 0 | EE10: 0 | EF10: 0 | EG10: 34 | EH10: 31 | EI10: 10 | EJ10: 4 | EK10: 0 | EL10: 1 | EM10: 5 | EN10: 0 | EO10: 3 | EP10: 3 | EQ10: 0 | ER10: 0 | ES10: 0 | ET10: 0 | EU10: 0 | EV10: 0 | EW10: 1 | EX10: 0 | EY10: 0 | EZ10: 0 | FA10: 1 | FB10: 0 | FC10: 0 | FD10: 0 | FE10: 0 | FF10: 0 | FG10: 0 | FH10: 0 | FI10: 0 | FJ10: 0 | FK10: 0 | FL10: 0 | FM10: 0 | FN10: 0 | FO10: 0 | FP10: 0 | FQ10: 0 | FR10: 0 | FS10: 0 | FT10: 0 | FU10: 0 | FV10: 0 | FW10: 0 | FX10: 0 | FY10: 0 | FZ10: 0 | GA10: 0 | GB10: 1 | GC10: 0 | GD10: 0 | GE10: 0
B11: Françoise DEBIAIS | C11: =SUMPRODUCT(('Avantages perçus'!$A$2:$A$30000=B11)*('Avantages perçus'!$F$2:$F$30000)) -> 19910 | D11: =COUNTIFS('Avantages perçus'!$A$2:$A$30000,B11,'Avantages perçus'!$F$2:$F$30000,">0") -> 90 | E11: =COUNTIFS('Conventions signées'!$A$2:$A$15000,B11,'Conventions signées'!$A$2:$A$15000,"*") -> 40 | F11: 11370 | G11: 3618 | H11: 1913 | I11: 668 | J11: 2188 | K11: 0 | L11: 0 | M11: 153 | N11: 14 | O11: 11 | P11: 8 | Q11: 7 | R11: 0 | S11: 0 | T11: 0 | U11: 0 | V11: 0 | W11: 0 | X11: 0 | Y11: 760 | Z11: 711 | AA11: 8027 | AB11: 80 | AC11: 0 | AD11: 3627 | AE11: 4759 | AF11: 52 | AG11: 0 | AH11: 212 | AI11: 20 | AJ11: 0 | AK11: 0 | AL11: 72 | AM11: 50 | AN11: 0 | AO11: 0 | AP11: 1471 | AQ11: 0 | AR11: 0 | AS11: 0 | AT11: 0 | AU11: 0 | AV11: 0 | AW11: 0 | AX11: 0 | AY11: 0 | AZ11: 0 | BA11: 34 | BB11: 0 | BC11: 0 | BD11: 0 | BE11: 0 | BF11: 0 | BG11: 0 | BH11: 0 | BI11: 0 | BJ11: 0 | BK11: 0 | BL11: 15 | BM11: 20 | BN11: 0 | BO11: 0 | BP11: 0 | BQ11: 0 | BR11: 0 | BS11: 0 | BT11: 0 | BU11: 0 | BV11: 0 | BW11: 0 | BX11: 0 | BY11: 0 | BZ11: 0 | CA11: 0 | CB11: 0 | CC11: 29 | CD11: 5 | CE11: 2 | CF11: 8 | CG11: 26 | CH11: 1 | CI11: 1 | CJ11: 0 | CK11: 3 | CL11: 3 | CM11: 3 | CN11: 0 | CO11: 0 | CP11: 1 | CQ11: 0 | CR11: 0 | CS11: 0 | CT11: 0 | CU11: 0 | CV11: 0 | CW11: 0 | CX11: 0 | CY11: 0 | CZ11: 1 | DA11: 0 | DB11: 0 | DC11: 2 | DD11: 0 | DE11: 0 | DF11: 1 | DG11: 4 | DH11: 0 | DI11: 0 | DJ11: 0 | DK11: 0 | DL11: 0 | DM11: 0 | DN11: 0 | DO11: 0 | DP11: 0 | DQ11: 0 | DR11: 0 | DS11: 0 | DT11: 0 | DU11: 0 | DV11: 0 | DW11: 0 | DX11: 0 | DY11: 0 | DZ11: 0 | EA11: 0 | EB11: 0 | EC11: 0 | ED11: 0 | EE11: 0 | EF11: 0 | EG11: 6 | EH11: 5 | EI11: 7 | EJ11: 2 | EK11: 13 | EL11: 0 | EM11: 0 | EN11: 0 | EO11: 1 | EP11: 1 | EQ11: 2 | ER11: 0 | ES11: 0 | ET11: 0 | EU11: 0 | EV11: 2 | EW11: 0 | EX11: 0 | EY11: 0 | EZ11: 0 | FA11: 0 | FB11: 0 | FC11: 0 | FD11: 0 | FE11: 0 | FF11: 0 | FG11: 0 | FH11: 0 | FI11: 0 | FJ11: 0 | FK11: 0 | FL11: 0 | FM11: 0 | FN11: 0 | FO11: 0 | FP11: 0 | FQ11: 0 | FR11: 0 | FS11: 0 | FT11: 0 | FU11: 0 | FV11: 0 | FW11: 0 | FX11: 0 | FY11: 0 | FZ11: 0 | GA11: 0 | GB11: 0 | GC11: 0 | GD11: 1 | GE11: 0
B12: Philippe GOUPILLE | C12: =SUMPRODUCT(('Avantages perçus'!$A$2:$A$30000=B12)*('Avantages perçus'!$F$2:$F$30000)) -> 15014 | D12: =COUNTIFS('Avantages perçus'!$A$2:$A$30000,B12,'Avantages perçus'!$F$2:$F$30000,">0") -> 137 | E12: =COUNTIFS('Conventions signées'!$A$2:$A$15000,B12,'Conventions signées'!$A$2:$A$15000,"*") -> 113 | F12: 6204 | G12: 2522 | H12: 3886 | I12: 1852 | J12: 290 | K12: 0 | L12: 122 | M12: 138 | N12: 21 | O12: 26 | P12: 17 | Q12: 27 | R12: 11 | S12: 8 | T12: 0 | U12: 0 | V12: 2 | W12: 0 | X12: 1 | Y12: 2141 | Z12: 3338 | AA12: 3611 | AB12: 3188 | AC12: 817 | AD12: 110 | AE12: 10 | AF12: 338 | AG12: 0 | AH12: 295 | AI12: 445 | AJ12: 0 | AK12: 0 | AL12: 445 | AM12: 50 | AN12: 0 | AO12: 0 | AP12: 0 | AQ12: 0 | AR12: 0 | AS12: 0 | AT12: 0 | AU12: 0 | AV12: 0 | AW12: 0 | AX12: 0 | AY12: 0 | AZ12: 29 | BA12: 0 | BB12: 172 | BC12: 0 | BD12: 0 | BE12: 25 | BF12: 0 | BG12: 0 | BH12: 0 | BI12: 0 | BJ12: 0 | BK12: 0 | BL12: 0 | BM12: 0 | BN12: 0 | BO12: 0 | BP12: 0 | BQ12: 0 | BR12: 0 | BS12: 0 | BT12: 0 | BU12: 0 | BV12: 0 | BW12: 0 | BX12: 0 | BY12: 0 | BZ12: 0 | CA12: 0 | CB12: 0 | CC12: 35 | CD12: 21 | CE12: 25 | CF12: 13 | CG12: 4 | CH12: 6 | CI12: 8 | CJ12: 4 | CK12: 5 | CL12: 6 | CM12: 1 | CN12: 0 | CO12: 6 | CP12: 1 | CQ12: 0 | CR12: 1 | CS12: 1 | CT12: 0 | CU12: 0 | CV12: 0 | CW12: 0 | CX12: 0 | CY12: 0 | CZ12: 0 | DA12: 0 | DB12: 0 | DC12: 0 | DD12: 0 | DE12: 0 | DF12: 0 | DG12: 0 | DH12: 0 | DI12: 0 | DJ12: 0 | DK12: 0 | DL12: 0 | DM12: 0 | DN12: 0 | DO12: 0 | DP12: 0 | DQ12: 0 | DR12: 0 | DS12: 0 | DT12: 0 | DU12: 0 | DV12: 0 | DW12: 0 | DX12: 0 | DY12: 0 | DZ12: 0 | EA12: 0 | EB12: 0 | EC12: 0 | ED12: 0 | EE12: 0 | EF12: 0 | EG12: 33 | EH12: 10 | EI12: 15 | EJ12: 10 | EK12: 6 | EL12: 9 | EM12: 2 | EN12: 2 | EO12: 1 | EP12: 5 | EQ12: 3 | ER12: 6 | ES12: 0 | ET12: 0 | EU12: 0 | EV12: 0 | EW12: 0 | EX12: 0 | EY12: 1 | EZ12: 0 | FA12: 0 | FB12: 0 | FC12: 1 | FD12: 2 | FE12: 0 | FF12: 0 | FG12: 0 | FH12: 0 | FI12: 0 | FJ12: 1 | FK12: 1 | FL12: 0 | FM12: 0 | FN12: 0 | FO12: 2 | FP12: 2 | FQ12: 0 | FR12: 0 | FS12: 0 | FT12: 0 | FU12: 0 | FV12: 0 | FW12: 0 | FX12: 0 | FY12: 0 | FZ12: 0 | GA12: 0 | GB12: 0 | GC12: 1 | GD12: 0 | GE12: 0
B13: Francis BERENBAUM | C13: =SUMPRODUCT(('Avantages perçus'!$A$2:$A$30000=B13)*('Avantages perçus'!$F$2:$F$30000)) -> 14161 | D13: =COUNTIFS('Avantages perçus'!$A$2:$A$30000,B13,'Avantages perçus'!$F$2:$F$30000,">0") -> 67 | E13: =COUNTIFS('Conventions signées'!$A$2:$A$15000,B13,'Conventions signées'!$A$2:$A$15000,"*") -> 38 | F13: 6673 | G13: 1988 | H13: 2150 | I13: 73 | J13: 1643 | K13: 0 | L13: 1634 | M13: 0 | N13: 5 | O13: 2 | P13: 12 | Q13: 8 | R13: 5 | S13: 4 | T13: 0 | U13: 0 | V13: 0 | W13: 0 | X13: 2 | Y13: 344 | Z13: 2489 | AA13: 749 | AB13: 583 | AC13: 2140 | AD13: 0 | AE13: 42 | AF13: 359 | AG13: 0 | AH13: 32 | AI13: 2178 | AJ13: 5178 | AK13: 0 | AL13: 0 | AM13: 0 | AN13: 0 | AO13: 0 | AP13: 0 | AQ13: 0 | AR13: 0 | AS13: 0 | AT13: 0 | AU13: 37 | AV13: 0 | AW13: 0 | AX13: 0 | AY13: 0 | AZ13: 0 | BA13: 0 | BB13: 30 | BC13: 0 | BD13: 0 | BE13: 0 | BF13: 0 | BG13: 0 | BH13: 0 | BI13: 0 | BJ13: 0 | BK13: 0 | BL13: 0 | BM13: 0 | BN13: 0 | BO13: 0 | BP13: 0 | BQ13: 0 | BR13: 0 | BS13: 0 | BT13: 0 | BU13: 0 | BV13: 0 | BW13: 0 | BX13: 0 | BY13: 0 | BZ13: 0 | CA13: 0 | CB13: 0 | CC13: 20 | CD13: 6 | CE13: 3 | CF13: 14 | CG13: 0 | CH13: 5 | CI13: 9 | CJ13: 3 | CK13: 1 | CL13: 0 | CM13: 1 | CN13: 0 | CO13: 3 | CP13: 0 | CQ13: 0 | CR13: 0 | CS13: 0 | CT13: 0 | CU13: 0 | CV13: 0 | CW13: 0 | CX13: 0 | CY13: 0 | CZ13: 0 | DA13: 0 | DB13: 1 | DC13: 0 | DD13: 0 | DE13: 0 | DF13: 0 | DG13: 0 | DH13: 0 | DI13: 0 | DJ13: 0 | DK13: 0 | DL13: 0 | DM13: 0 | DN13: 0 | DO13: 0 | DP13: 0 | DQ13: 0 | DR13: 0 | DS13: 0 | DT13: 0 | DU13: 0 | DV13: 1 | DW13: 0 | DX13: 0 | DY13: 0 | DZ13: 0 | EA13: 0 | EB13: 0 | EC13: 0 | ED13: 0 | EE13: 0 | EF13: 0 | EG13: 3 | EH13: 11 | EI13: 5 | EJ13: 4 | EK13: 0 | EL13: 1 | EM13: 5 | EN13: 1 | EO13: 0 | EP13: 0 | EQ13: 0 | ER13: 1 | ES13: 0 | ET13: 2 | EU13: 0 | EV13: 0 | EW13: 3 | EX13: 0 | EY13: 0 | EZ13: 0 | FA13: 0 | FB13: 0 | FC13: 0 | FD13: 0 | FE13: 0 | FF13: 0 | FG13: 0 | FH13: 0 | FI13: 0 | FJ13: 0 | FK13: 0 | FL13: 0 | FM13: 0 | FN13: 0 | FO13: 0 | FP13: 0 | FQ13: 0 | FR13: 0 | FS13: 1 | FT13: 1 | FU13: 0 | FV13: 0 | FW13: 0 | FX13: 0 | FY13: 0 | FZ13: 0 | GA13: 0 | GB13: 0 | GC13: 0 | GD13: 0 | GE13: 0
B14: Henri LELLOUCHE | C14: =SUMPRODUCT(('Avantages perçus'!$A$2:$A$30000=B14)*('Avantages perçus'!$F$2:$F$30000)) -> 9155 | D14: =COUNTIFS('Avantages perçus'!$A$2:$A$30000,B14,'Avantages perçus'!$F$2:$F$30000,">0") -> 64 | E14: =COUNTIFS('Conventions signées'!$A$2:$A$15000,B14,'Conventions signées'!$A$2:$A$15000,"*") -> 36 | F14: 1698 | G14: 2011 | H14: 2596 | I14: 1238 | J14: 1462 | K14: 0 | L14: 0 | M14: 150 | N14: 8 | O14: 0 | P14: 9 | Q14: 3 | R14: 11 | S14: 0 | T14: 0 | U14: 4 | V14: 0 | W14: 0 | X14: 1 | Y14: 60 | Z14: 120 | AA14: 1166 | AB14: 53 | AC14: 378 | AD14: 34 | AE14: 0 | AF14: 32 | AG14: 0 | AH14: 0 | AI14: 0 | AJ14: 0 | AK14: 3750 | AL14: 0 | AM14: 0 | AN14: 1928 | AO14: 0 | AP14: 0 | AQ14: 0 | AR14: 0 | AS14: 0 | AT14: 527 | AU14: 0 | AV14: 0 | AW14: 0 | AX14: 0 | AY14: 283 | AZ14: 54 | BA14: 0 | BB14: 0 | BC14: 255 | BD14: 0 | BE14: 0 | BF14: 0 | BG14: 0 | BH14: 0 | BI14: 0 | BJ14: 140 | BK14: 156 | BL14: 0 | BM14: 0 | BN14: 0 | BO14: 0 | BP14: 114 | BQ14: 0 | BR14: 0 | BS14: 60 | BT14: 45 | BU14: 0 | BV14: 0 | BW14: 0 | BX14: 0 | BY14: 0 | BZ14: 0 | CA14: 0 | CB14: 0 | CC14: 14 | CD14: 1 | CE14: 1 | CF14: 2 | CG14: 1 | CH14: 1 | CI14: 0 | CJ14: 5 | CK14: 0 | CL14: 0 | CM14: 0 | CN14: 0 | CO14: 0 | CP14: 0 | CQ14: 8 | CR14: 2 | CS14: 0 | CT14: 0 | CU14: 0 | CV14: 0 | CW14: 6 | CX14: 6 | CY14: 3 | CZ14: 0 | DA14: 0 | DB14: 0 | DC14: 0 | DD14: 0 | DE14: 0 | DF14: 0 | DG14: 0 | DH14: 4 | DI14: 4 | DJ14: 0 | DK14: 0 | DL14: 0 | DM14: 0 | DN14: 0 | DO14: 0 | DP14: 0 | DQ14: 0 | DR14: 2 | DS14: 2 | DT14: 0 | DU14: 0 | DV14: 0 | DW14: 0 | DX14: 0 | DY14: 0 | DZ14: 0 | EA14: 0 | EB14: 0 | EC14: 0 | ED14: 0 | EE14: 1 | EF14: 1 | EG14: 2 | EH14: 2 | EI14: 8 | EJ14: 1 | EK14: 0 | EL14: 0 | EM14: 0 | EN14: 1 | EO14: 0 | EP14: 0 | EQ14: 0 | ER14: 0 | ES14: 9 | ET14: 2 | EU14: 0 | EV14: 0 | EW14: 0 | EX14: 6 | EY14: 0 | EZ14: 0 | FA14: 0 | FB14: 0 | FC14: 0 | FD14: 0 | FE14: 0 | FF14: 3 | FG14: 0 | FH14: 0 | FI14: 0 | FJ14: 0 | FK14: 0 | FL14: 0 | FM14: 0 | FN14: 0 | FO14: 0 | FP14: 0 | FQ14: 2 | FR14: 0 | FS14: 0 | FT14: 0 | FU14: 0 | FV14: 0 | FW14: 0 | FX14: 0 | FY14: 0 | FZ14: 0 | GA14: 0 | GB14: 0 | GC14: 0 | GD14: 0 | GE14: 0
B15: Jérémy MAILLET | C15: =SUMPRODUCT(('Avantages perçus'!$A$2:$A$30000=B15)*('Avantages perçus'!$F$2:$F$30000)) -> 400 | D15: =COUNTIFS('Avantages perçus'!$A$2:$A$30000,B15,'Avantages perçus'!$F$2:$F$30000,">0") -> 10 | E15: =COUNTIFS('Conventions signées'!$A$2:$A$15000,B15,'Conventions signées'!$A$2:$A$15000,"*") -> 5 | F15: 0 | G15: 0 | H15: 383 | I15: 17 | J15: 0 | K15: 0 | L15: 0 | M15: 0 | N15: 3 | O15: 0 | P15: 1 | Q15: 0 | R15: 0 | S15: 0 | T15: 0 | U15: 1 | V15: 0 | W15: 0 | X15: 0 | Y15: 0 | Z15: 0 | AA15: 270 | AB15: 17 | AC15: 0 | AD15: 0 | AE15: 0 | AF15: 33 | AG15: 0 | AH15: 0 | AI15: 50 | AJ15: 0 | AK15: 0 | AL15: 0 | AM15: 0 | AN15: 0 | AO15: 0 | AP15: 0 | AQ15: 0 | AR15: 0 | AS15: 0 | AT15: 0 | AU15: 0 | AV15: 0 | AW15: 0 | AX15: 0 | AY15: 0 | AZ15: 0 | BA15: 0 | BB15: 0 | BC15: 0 | BD15: 0 | BE15: 0 | BF15: 30 | BG15: 0 | BH15: 0 | BI15: 0 | BJ15: 0 | BK15: 0 | BL15: 0 | BM15: 0 | BN15: 0 | BO15: 0 | BP15: 0 | BQ15: 0 | BR15: 0 | BS15: 0 | BT15: 0 | BU15: 0 | BV15: 0 | BW15: 0 | BX15: 0 | BY15: 0 | BZ15: 0 | CA15: 0 | CB15: 0 | CC15: 6 | CD15: 0 | CE15: 1 | CF15: 0 | CG15: 0 | CH15: 1 | CI15: 1 | CJ15: 0 | CK15: 0 | CL15: 0 | CM15: 0 | CN15: 0 | CO15: 0 | CP15: 0 | CQ15: 0 | CR15: 0 | CS15: 0 | CT15: 0 | CU15: 0 | CV15: 1 | CW15: 0 | CX15: 0 | CY15: 0 | CZ15: 0 | DA15: 0 | DB15: 0 | DC15: 0 | DD15: 0 | DE15: 0 | DF15: 0 | DG15: 0 | DH15: 0 | DI15: 0 | DJ15: 0 | DK15: 0 | DL15: 0 | DM15: 0 | DN15: 0 | DO15: 0 | DP15: 0 | DQ15: 0 | DR15: 0 | DS15: 0 | DT15: 0 | DU15: 0 | DV15: 0 | DW15: 0 | DX15: 0 | DY15: 0 | DZ15: 0 | EA15: 0 | EB15: 0 | EC15: 0 | ED15: 0 | EE15: 0 | EF15: 0 | EG15: 0 | EH15: 0 | EI15: 3 | EJ15: 1 | EK15: 0 | EL15: 0 | EM15: 1 | EN15: 0 | EO15: 0 | EP15: 0 | EQ15: 0 | ER15: 0 | ES15: 0 | ET15: 0 | EU15: 0 | EV15: 0 | EW15: 0 | EX15: 0 | EY15: 0 | EZ15: 0 | FA15: 0 | FB15: 0 | FC15: 0 | FD15: 0 | FE15: 0 | FF15: 0 | FG15: 0 | FH15: 0 | FI15: 0 | FJ15: 0 | FK15: 0 | FL15: 0 | FM15: 0 | FN15: 0 | FO15: 0 | FP15: 0 | FQ15: 0 | FR15: 0 | FS15: 0 | FT15: 0 | FU15: 0 | FV15: 0 | FW15: 0 | FX15: 0 | FY15: 0 | FZ15: 0 | GA15: 0 | GB15: 0 | GC15: 0 | GD15: 0 | GE15: 0
B16: Catherine REILLAT | C16: =SUMPRODUCT(('Avantages perçus'!$A$2:$A$30000=B16)*('Avantages perçus'!$F$2:$F$30000)) -> 26 | D16: =COUNTIFS('Avantages perçus'!$A$2:$A$30000,B16,'Avantages perçus'!$F$2:$F$30000,">0") -> 1 | E16: =COUNTIFS('Conventions signées'!$A$2:$A$15000,B16,'Conventions signées'!$A$2:$A$15000,"*") -> 0 | F16: 0 | G16: 0 | H16: 26 | I16: 0 | J16: 0 | K16: 0 | L16: 0 | M16: 0 | N16: 0 | O16: 0 | P16: 0 | Q16: 0 | R16: 0 | S16: 0 | T16: 0 | U16: 0 | V16: 0 | W16: 0 | X16: 0 | Y16: 0 | Z16: 0 | AA16: 26 | AB16: 0 | AC16: 0 | AD16: 0 | AE16: 0 | AF16: 0 | AG16: 0 | AH16: 0 | AI16: 0 | AJ16: 0 | AK16: 0 | AL16: 0 | AM16: 0 | AN16: 0 | AO16: 0 | AP16: 0 | AQ16: 0 | AR16: 0 | AS16: 0 | AT16: 0 | AU16: 0 | AV16: 0 | AW16: 0 | AX16: 0 | AY16: 0 | AZ16: 0 | BA16: 0 | BB16: 0 | BC16: 0 | BD16: 0 | BE16: 0 | BF16: 0 | BG16: 0 | BH16: 0 | BI16: 0 | BJ16: 0 | BK16: 0 | BL16: 0 | BM16: 0 | BN16: 0 | BO16: 0 | BP16: 0 | BQ16: 0 | BR16: 0 | BS16: 0 | BT16: 0 | BU16: 0 | BV16: 0 | BW16: 0 | BX16: 0 | BY16: 0 | BZ16: 0 | CA16: 0 | CB16: 0 | CC16: 1 | CD16: 0 | CE16: 0 | CF16: 0 | CG16: 0 | CH16: 0 | CI16: 0 | CJ16: 0 | CK16: 0 | CL16: 0 | CM16: 0 | CN16: 0 | CO16: 0 | CP16: 0 | CQ16: 0 | CR16: 0 | CS16: 0 | CT16: 0 | CU16: 0 | CV16: 0 | CW16: 0 | CX16: 0 | CY16: 0 | CZ16: 0 | DA16: 0 | DB16: 0 | DC16: 0 | DD16: 0 | DE16: 0 | DF16: 0 | DG16: 0 | DH16: 0 | DI16: 0 | DJ16: 0 | DK16: 0 | DL16: 0 | DM16: 0 | DN16: 0 | DO16: 0 | DP16: 0 | DQ16: 0 | DR16: 0 | DS16: 0 | DT16: 0 | DU16: 0 | DV16: 0 | DW16: 0 | DX16: 0 | DY16: 0 | DZ16: 0 | EA16: 0 | EB16: 0 | EC16: 0 | ED16: 0 | EE16: 0 | EF16: 0 | EG16: 0 | EH16: 0 | EI16: 0 | EJ16: 0 | EK16: 0 | EL16: 0 | EM16: 0 | EN16: 0 | EO16: 0 | EP16: 0 | EQ16: 0 | ER16: 0 | ES16: 0 | ET16: 0 | EU16: 0 | EV16: 0 | EW16: 0 | EX16: 0 | EY16: 0 | EZ16: 0 | FA16: 0 | FB16: 0 | FC16: 0 | FD16: 0 | FE16: 0 | FF16: 0 | FG16: 0 | FH16: 0 | FI16: 0 | FJ16: 0 | FK16: 0 | FL16: 0 | FM16: 0 | FN16: 0 | FO16: 0 | FP16: 0 | FQ16: 0 | FR16: 0 | FS16: 0 | FT16: 0 | FU16: 0 | FV16: 0 | FW16: 0 | FX16: 0 | FY16: 0 | FZ16: 0 | GA16: 0 | GB16: 0 | GC16: 0 | GD16: 0 | GE16: 0
B17: TOTAUX | C17: 337548 | D17: 1628 | E17: 1008 | F17: 183138 | G17: 45183 | H17: 45587 | I17: 30438 | J17: 17809 | K17: 0 | L17: 2263 | M17: 13130 | N17: 218 | O17: 209 | P17: 175 | Q17: 244 | R17: 93 | S17: 34 | T17: 7 | U17: 15 | V17: 3 | W17: 0 | X17: 10 | Y17: 73471 | Z17: 61818 | AA17: 56990 | AB17: 33755 | AC17: 17417 | AD17: 16833 | AE17: 12699 | AF17: 10397 | AG17: 9200 | AH17: 8976 | AI17: 6938 | AJ17: 5178 | AK17: 3804 | AL17: 3434 | AM17: 3244 | AN17: 1928 | AO17: 1848 | AP17: 1471 | AQ17: 770 | AR17: 700 | AS17: 626 | AT17: 527 | AU17: 422 | AV17: 417 | AW17: 397 | AX17: 283 | AY17: 283 | AZ17: 279 | BA17: 277 | BB17: 268 | BC17: 255 | BD17: 240 | BE17: 208 | BF17: 207 | BG17: 206 | BH17: 204 | BI17: 198 | BJ17: 168 | BK17: 156 | BL17: 145 | BM17: 138 | BN17: 137 | BO17: 119 | BP17: 114 | BQ17: 70 | BR17: 64 | BS17: 60 | BT17: 45 | BU17: 30 | BV17: 29 | BW17: 24 | BX17: 22 | BY17: 20 | BZ17: 16 | CA17: 12 | CB17: 11 | CC17: 386 | CD17: 298 | CE17: 175 | CF17: 147 | CG17: 114 | CH17: 109 | CI17: 65 | CJ17: 45 | CK17: 44 | CL17: 31 | CM17: 26 | CN17: 20 | CO17: 13 | CP17: 10 | CQ17: 10 | CR17: 10 | CS17: 8 | CT17: 7 | CU17: 6 | CV17: 6 | CW17: 6 | CX17: 6 | CY17: 5 | CZ17: 5 | DA17: 5 | DB17: 5 | DC17: 5 | DD17: 4 | DE17: 4 | DF17: 4 | DG17: 4 | DH17: 4 | DI17: 4 | DJ17: 3 | DK17: 3 | DL17: 3 | DM17: 3 | DN17: 2 | DO17: 2 | DP17: 2 | DQ17: 2 | DR17: 2 | DS17: 2 | DT17: 1 | DU17: 1 | DV17: 1 | DW17: 1 | DX17: 1 | DY17: 1 | DZ17: 1 | EA17: 1 | EB17: 1 | EC17: 1 | ED17: 1 | EE17: 1 | EF17: 1 | EG17: 249 | EH17: 154 | EI17: 130 | EJ17: 99 | EK17: 75 | EL17: 63 | EM17: 41 | EN17: 23 | EO17: 20 | EP17: 18 | EQ17: 14 | ER17: 12 | ES17: 9 | ET17: 7 | EU17: 7 | EV17: 7 | EW17: 6 | EX17: 6 | EY17: 5 | EZ17: 5 | FA17: 4 | FB17: 4 | FC17: 4 | FD17: 4 | FE17: 3 | FF17: 3 | FG17: 2 | FH17: 2 | FI17: 2 | FJ17: 2 | FK17: 2 | FL17: 2 | FM17: 2 | FN17: 2 | FO17: 2 | FP17: 2 | FQ17: 2 | FR17: 1 | FS17: 1 | FT17: 1 | FU17: 1 | FV17: 1 | FW17: 1 | FX17: 1 | FY17: 1 | FZ17: 1 | GA17: 1 | GB17: 1 | GC17: 1 | GD17: 1 | GE17: 1
B20: Période d'étude | C20: 1er semestre 2012 - 2ème semestre 2015, soient 4 années

Sheet Regr lin nbr avt & dépenses
A1: RAPPORT DÉTAILLÉ
A3: Statistiques de la régression
A4: Coefficient de détermination multiple | B4: 0.8811716176
A5: Coefficient de détermination R^2 | B5: 0.7764634197
A6: Coefficient de détermination R^2 | B6: 0.7485213471
A7: Erreur-type | B7: 91330080.11
A8: Observations | B8: 10
A10: ANALYSE DE VARIANCE
B11: Degré de liberté | C11: Somme des carrés | D11: Moyenne des carrés | E11: F | F11: Valeur critique de F
A12: Régression | B12: 1 | C12: 2.317875269e+17 | D12: 2.317875269e+17 | E12: 27.78832595 | F12: 0.0007539568954
A13: Résidus | B13: 8 | C13: 6.672946827e+16 | D13: 8341183533274932
A14: Total | B14: 9 | C14: 2.985169951e+17
B16: Coefficients | C16: Erreur-type | D16: Statistique t | E16: Probabilité | F16: Limite inférieure pour seuil de confiance = 95% | G16: Limite supérieure pour seuil de confiance = 95% | H16: Limite inférieure pour seuil de confiance = 95,0% | I16: Limite supérieure pour seuil de confiance = 95,0%
A17: Constante | B17: 2105248.493 | C17: 41505687.88 | D17: 0.05072192753 | E17: 0.9607906736 | F17: -93607039.31 | G17: 97817536.3 | H17: -93607039.31 | I17: 97817536.3
A18: Nombre d'avantages versés | B18: 1236345.118 | C18: 234535.4664 | D18: 5.27146336 | E18: 0.0007539568954 | F18: 695505.3628 | G18: 1777184.873 | H18: 695505.3628 | I18: 1777184.873

Sheet Regr lin nbr cvt & dépenses
A1: RAPPORT DÉTAILLÉ
A3: Statistiques de la régression
A4: Coefficient de détermination multiple | B4: 0.8821452186
A5: Coefficient de détermination R^2 | B5: 0.7781801868
A6: Coefficient de détermination R^2 | B6: 0.7504527101
A7: Erreur-type | B7: 90978695.38
A8: Observations | B8: 10
A10: ANALYSE DE VARIANCE
B11: Degré de liberté | C11: Somme des carrés | D11: Moyenne des carrés | E11: F | F11: Valeur critique de F
A12: Régression | B12: 1 | C12: 2.32300011e+17 | D12: 2.32300011e+17 | E12: 28.06530852 | F12: 0.0007304405649
A13: Résidus | B13: 8 | C13: 6.621698411e+16 | D13: 8277123013768198
A14: Total | B14: 9 | C14: 2.985169951e+17
B16: Coefficients | C16: Erreur-type | D16: Statistique t | E16: Probabilité | F16: Limite inférieure pour seuil de confiance = 95% | G16: Limite supérieure pour seuil de confiance = 95% | H16: Limite inférieure pour seuil de confiance = 95,0% | I16: Limite supérieure pour seuil de confiance = 95,0%
A17: Constante | B17: 3330030.146 | C17: 41156827.39 | D17: 0.0809107591 | E17: 0.9375004847 | F17: -91577783.92 | G17: 98237844.21 | H17: -91577783.92 | I17: 98237844.21
A18: Nombre de conventions signées | B18: 1988707.689 | C18: 375392.8897 | D18: 5.297670103 | E18: 0.0007304405649 | F18: 1123050.133 | G18: 2854365.244 | H18: 1123050.133 | I18: 2854365.244

Sheet Regr lin mts & dépenses
A1: RAPPORT DÉTAILLÉ
A3: Statistiques de la régression
A4: Coefficient de détermination multiple | B4: 0.801217631
A5: Coefficient de détermination R^2 | B5: 0.6419496923
A6: Coefficient de détermination R^2 | B6: 0.5971934038
A7: Erreur-type | B7: 115587684.2
A8: Observations | B8: 10
A10: ANALYSE DE VARIANCE
B11: Degré de liberté | C11: Somme des carrés | D11: Moyenne des carrés | E11: F | F11: Valeur critique de F
A12: Régression | B12: 1 | C12: 1.916328932e+17 | D12: 1.916328932e+17 | E12: 14.34322895 | F12: 0.005332734214
A13: Résidus | B13: 8 | C13: 1.06884102e+17 | D13: 1.336051275e+16
A14: Total | B14: 9 | C14: 2.985169951e+17
B16: Coefficients | C16: Erreur-type | D16: Statistique t | E16: Probabilité | F16: Limite inférieure pour seuil de confiance = 95% | G16: Limite supérieure pour seuil de confiance = 95% | H16: Limite inférieure pour seuil de confiance = 95,0% | I16: Limite supérieure pour seuil de confiance = 95,0%
A17: Constante | B17: 23229157.53 | C17: 51243288.38 | D17: 0.4533112192 | E17: 0.6623675033 | F17: -94938077.28 | G17: 141396392.3 | H17: -94938077.28 | I17: 141396392.3
A18: Total avantages versés** | B18: 5166.821986 | C18: 1364.269071 | D18: 3.787245562 | E18: 0.005332734214 | F18: 2020.811868 | G18: 8312.832104 | H18: 2020.811868 | I18: 8312.832104

Sheet DATA
A3: Médicament(s) | B3: Firme | C3: Total avantages versés** | D3: Nombre d'avantages versés | E3: Nombre de conventions signées | F3: Dépense 2015*
A4: INFLECTRA®, infliximab | B4: HOSPIRA | C4: ='Tableaux de synthèse'!BM17 -> 138 | D4: ='Tableaux de synthèse'!CZ17 -> 5 | E4: ='Tableaux de synthèse'!FU17 -> 1 | F4: 6378071
A5: REMSIMA®, infliximab | B5: BIOGARAN | C5: ='Tableaux de synthèse'!BB17 -> 268 | D5: ='Tableaux de synthèse'!CO17 -> 13 | E5: ='Tableaux de synthèse'!ER17 -> 12 | F5: 1808091
A6: KINERET®, anakinra | B6: SWEDISH ORPHAN BIOVITRUM | C6: ='Tableaux de synthèse'!BE17 -> 208 | D6: ='Tableaux de synthèse'!CS17 -> 8 | E6: ='Tableaux de synthèse'!EY17 -> 5 | F6: 7644188.906
A7: METOJECT®, méthotrexate injectable | B7: NORDIC PHARMA | C7: ='Tableaux de synthèse'!AC17 -> 17417 | D7: ='Tableaux de synthèse'!CJ17 -> 45 | E7: ='Tableaux de synthèse'!EN17 -> 23 | F7: 43489683.72
A8: CIMZIA®, certolizumab | B8: UCB PHARMA | C8: ='Tableaux de synthèse'!AI17 -> 6938 | D8: ='Tableaux de synthèse'!CI17 -> 65 | E8: ='Tableaux de synthèse'!EM17 -> 41 | F8: 33438228.38
A9: ORENCIA®, abatacept | B9: BMS | C9: ='Tableaux de synthèse'!AB17 -> 33755 | D9: ='Tableaux de synthèse'!CE17 -> 175 | E9: ='Tableaux de synthèse'!EL17 -> 63 | F9: 48960481.71
A10: MABTHERA®, rituximab + ROACTEMRA®, tocilizumab | B10: ROCHE + CHUGAÏ | C10: ='Tableaux de synthèse'!AF17+'Tableaux de synthèse'!AO17 -> 12245 | D10: ='Tableaux de synthèse'!CH17+'Tableaux de synthèse'!CN17 -> 129 | E10: ='Tableaux de synthèse'!EJ17+'Tableaux de synthèse'!EU17 -> 106 | F10: 321117022.5
A11: REMICADE®, infliximab + SIMPONI®, golimumab | B11: MSD | C11: ='Tableaux de synthèse'!Y17 -> 73471 | D11: ='Tableaux de synthèse'!CD17 -> 298 | E11: ='Tableaux de synthèse'!EG17 -> 249 | F11: 409994912.9
A12: ENBREL®, étanercept | B12: PFIZER | C12: ='Tableaux de synthèse'!Z17 -> 61818 | D12: ='Tableaux de synthèse'!CF17 -> 147 | E12: ='Tableaux de synthèse'!EH17 -> 154 | F12: 269086357.9
A13: HUMIRA®, adalimumab | B13: ABBVIE | C13: ='Tableaux de synthèse'!AA17 -> 56990 | D13: ='Tableaux de synthèse'!CC17 -> 386 | E13: ='Tableaux de synthèse'!EI17 -> 130 | F13: 450530091.5
B14: LILLY | C14: ='Tableaux de synthèse'!AH17 -> 8976 | D14: ='Tableaux de synthèse'!CK17 -> 44 | E14: ='Tableaux de synthèse'!EQ17 -> 14 | F14: 26244795
B15: AMGEN | C15: ='Tableaux de synthèse'!AD17 -> 16833 | D15: ='Tableaux de synthèse'!CG17 -> 114 | E15: ='Tableaux de synthèse'!EK17 -> 75 | F15: 13400751
B16: GSK | C16: ='Tableaux de synthèse'!AM17 -> 3244 | D16: ='Tableaux de synthèse'!FR17 -> 1 | E16: ='Tableaux de synthèse'!FR17 -> 1 | F16: ?
B17: Total 12 rhumatologues | C17: ='Tableaux de synthèse'!C17 -> 337548 | D17: ='Tableaux de synthèse'!D17 -> 1628 | E17: ='Tableaux de synthèse'!E17 -> 1008
B18: Total 8 biothérapies + 2 biosimilaires PR = 9 firmes (en jaune) | C18: =SUM(C8:C13)+SUM(C4:C5) -> 245623 | D18: =SUM(D8:D13)+SUM(D4:D5) -> 1218 | E18: 756
B19: % 8 biothérapies + 2 biosimilaires PR & 9 firmes | C19: =C18/C17 -> 0.7276683612 | D19: =D18/D17 -> 0.7481572482 | E19: 0.75
A21: (*) Montants remboursés en ville (médecins libéraux + prescriptions hospitalières ambulatoires) + liste en sus
A22: (**) Total avantages versés aux 12 rhumatologues en Euros sur la période 2012-2015 (4 années) ; idem pour les nombres d'avantages et de conventions signées
A23: AMGEN commercialise depuis 2010 PROLIA®, dénosumab, qu'il promeut chez les rhumatologues dans l'ostéoporose post ménauposique chez la femme à risque élevé de fracture
A24: LILLY commercialise depuis septembre 2004 FORSTEO®, tériparatide, qu'il promeut chez les rhumatologues dans l'ostéoporose post ménauposique chez la femme à risque élevé de fracture et développe le baricitinib, inhibiteur des JAK1 et JAK2
A25: GSK commercialise depuis octobre 2012 BENLYSTA®, belimumab, qu'il promeut auprès des rhumatologues dans le lupus erythémateux disséminé. Mais étant réservé à l'usage hospitalier et absent de la liste en sus, les volumes et montants prescrits et remboursés sont jalousement gardés dans les coffres forts de l'ANSM...
